{"text_format":"2","workbook":"xlsx","n_sheets":2,"sheets":["ORÇAMENTO","RELAÇÃO DE COMPOSIÇÕES"],"not_rendered":{"charts":0,"images":1,"macros":0,"external_links":0,"defined_names":0,"comments":0,"pivot_tables":0},"unopened":[],"bounds":{"document_bytes":16777216,"sheet_cells":100000,"run_cost":"one","rows_first":2000,"rows_last":500,"rows_between":2000,"halvings":0,"cell_chars":16384,"cell_head_chars":4096},"cells_cut":0,"cells_raw":0,"read":"whole","date_system":"1900"}

{"sheet":"ORÇAMENTO","index":0,"n_rows":376,"n_cols":8,"rows_kept":376,"cut":false,"hidden":false,"merged":[[8,0,8,7],[0,0,0,7],[1,0,1,7],[2,0,2,7],[7,0,7,7],[3,0,3,5],[4,0,4,5],[6,0,6,5]]}
[]
[]
[]
[{"$nulls":6},"DATA BASE: "," junho -2020"]
["COMPLEXO (REFORMA DA PRAÇA TENISSON FONTES - PRAÇA DE ALIMENTAÇÃO  E CONSTRUÇÃO DE TERMINAL RODOVIÁRIO) - ETAPA 1",{"$nulls":5},"PREÇO GLOBAL:",{"$f":"H376","v":1099532.5900000001}]
[{"$f":"#REF!","v":{"$error":"#REF!"}},{"$nulls":5},"BDI:",0]
["LOCAL:    município de Itabaianinha, no estado de Sergipe",{"$nulls":5},"BDI ",21.39]
["PLANILHA ORÇAMENTÁRIA DA OBRA"]
[]
["ITEM","CÓDIGO","DESCRIÇÃO","UNID.","QUANTIDADE","CUST. UNIT","PREÇO UNIT.","PREÇO TOTAL"]
[1,null,"ADMINISTRAÇÃO LOCAL E SERVIÇOS PRELIMINARES"]
["1.1",null,"ADMINISTRAÇÃO LOCAL"]
["1.1.1",null,"Equipe Dirigente"]
["1.1.1.1","CPU_1","Engenheiro civil de obra junior com encargos complementares","h",96,{"$f":"IF(B14=\"\",\"\",VLOOKUP(B14,'RELAÇÃO DE COMPOSIÇÕES'!$A$10:$F$374,6,FALSE))","v":93.87},{"$f":"IF(B14=\"\",\"\",ROUND(F14*(1+$H$6),2))","v":93.87},{"$f":"IF(B14=\"\",\"\",ROUND(E14*G14,2))","v":9011.52}]
["1.1.1.2","CPU_2","Mestre de obras com encargos complementares","h",960,{"$f":"IF(B15=\"\",\"\",VLOOKUP(B15,'RELAÇÃO DE COMPOSIÇÕES'!$A$10:$F$374,6,FALSE))","v":43.19},{"$f":"IF(B15=\"\",\"\",ROUND(F15*(1+$H$6),2))","v":43.19},{"$f":"IF(B15=\"\",\"\",ROUND(E15*G15,2))","v":41462.400000000001}]
["1.1.2","CPU_3","Manutenção do Canteiro","un",1,{"$f":"IF(B16=\"\",\"\",VLOOKUP(B16,'RELAÇÃO DE COMPOSIÇÕES'!$A$10:$F$374,6,FALSE))","v":3098.21},3098.21,3098.21]
["1.2",null,"SERVIÇOS PRELIMINARES"]
["1.2.1","CPU_4","Placa de obra em chapa aço galvanizado, instalada","m2",6,{"$f":"IF(B18=\"\",\"\",VLOOKUP(B18,'RELAÇÃO DE COMPOSIÇÕES'!$A$10:$F$374,6,FALSE))","v":341.38},{"$f":"IF(B18=\"\",\"\",ROUND(F18*(1+$H$6),2))","v":341.38},{"$f":"IF(B18=\"\",\"\",ROUND(E18*G18,2))","v":2048.2800000000002}]
["1.2.2","CPU_5","Instalação provisória de energia elétrica, aerea, trifasica, em poste galvanizado, exclusive fornecimento do medidor","un",1,{"$f":"IF(B19=\"\",\"\",VLOOKUP(B19,'RELAÇÃO DE COMPOSIÇÕES'!$A$10:$F$374,6,FALSE))","v":1953.49},1953.49,1953.49]
["1.2.3","CPU_6","Ligação Predial de Água em Mureta de Concreto, Provisória ou Definitiva, com Fornecimento de Material, inclusive Mureta e Hidrômetro, Rede DN 50mm","UN",1,{"$f":"IF(B20=\"\",\"\",VLOOKUP(B20,'RELAÇÃO DE COMPOSIÇÕES'!$A$10:$F$374,6,FALSE))","v":459.67},459.67,459.67]
["1.2.4","CPU_7","Tapume com telha metálica. af_05/2018 (para o terminal rodoviário)","m2",345.6,{"$f":"IF(B21=\"\",\"\",VLOOKUP(B21,'RELAÇÃO DE COMPOSIÇÕES'!$A$10:$F$374,6,FALSE))","v":73.959999999999994},73.959999999999994,25560.58]
["1.2.5","CPU_8","Locação de container - Almoxarifado com banheiro - 6,00 x 2,30m","mês",5,{"$f":"IF(B22=\"\",\"\",VLOOKUP(B22,'RELAÇÃO DE COMPOSIÇÕES'!$A$10:$F$374,6,FALSE))","v":439.48},439.48,2197.4]
["1.2.6","CPU_9","Locação de container - Escritório com banheiro - 6,20 x 2,20m","mês",5,{"$f":"IF(B23=\"\",\"\",VLOOKUP(B23,'RELAÇÃO DE COMPOSIÇÕES'!$A$10:$F$374,6,FALSE))","v":562.53},{"$f":"IF(B23=\"\",\"\",ROUND(F23*(1+$H$6),2))","v":562.53},{"$f":"IF(B23=\"\",\"\",ROUND(E23*G23,2))","v":2812.65}]
[2,null,"TERMINAL RODOVIÁRIO"]
["2.1",null,"DEMOLIÇÃO"]
["2.1.1","CPU_10","Demolição de pavimentação em paralelepípedo sem reaproveitamento","m2",597.4,{"$f":"IF(B26=\"\",\"\",VLOOKUP(B26,'RELAÇÃO DE COMPOSIÇÕES'!$A$10:$F$374,6,FALSE))","v":9.4600000000000009},9.4600000000000009,5651.4]
["2.1.2","CPU_11","Carga manual de entulho em caminhao basculante 6 m3","m3",74.680000000000007,{"$f":"IF(B27=\"\",\"\",VLOOKUP(B27,'RELAÇÃO DE COMPOSIÇÕES'!$A$10:$F$374,6,FALSE))","v":21.29},21.29,1589.94]
["2.2",null,"MOVIMENTAÇÃO DE TERRA"]
["2.2.1","CPU_13","Escavacao, carga e transporte de  material de 1a categoria com trator sobre esteiras 347 hp e cacamba 6m3,  dmt 50 a 200m","m3",597.4,{"$f":"IF(B29=\"\",\"\",VLOOKUP(B29,'RELAÇÃO DE COMPOSIÇÕES'!$A$10:$F$374,6,FALSE))","v":3.9},3.9,2329.86]
["2.3",null,"PAVIMENTAÇÃO"]
["2.3.1","CPU_14","Regularização manual e compactão com placa vibratótia","m2",891.08,{"$f":"IF(B31=\"\",\"\",VLOOKUP(B31,'RELAÇÃO DE COMPOSIÇÕES'!$A$10:$F$374,6,FALSE))","v":5.55},5.55,4945.49]
["2.3.2","CPU_15","Pavimento em concreto armado fck=25mpa, desempolado, e=10cm, p/ sobrecargas de até 4t/m2 c/ tela soldada Q138","m2",391.42,{"$f":"IF(B32=\"\",\"\",VLOOKUP(B32,'RELAÇÃO DE COMPOSIÇÕES'!$A$10:$F$374,6,FALSE))","v":76.680000000000007},76.680000000000007,30014.09]
["2.3.3","CPU_16","Pavimentação em concreto usinado, bomb., lançado e adensado, não armado, pigment. BAYFERROX preto ou similar, fck=21Mpa, e = 10cm,regulariz. compac. subleito, lona plástica, incl. juntas serradas 5x10 a 40mm - Rev 03","m²",36.479999999999997,{"$f":"IF(B33=\"\",\"\",VLOOKUP(B33,'RELAÇÃO DE COMPOSIÇÕES'!$A$10:$F$374,6,FALSE))","v":100.19},100.19,3654.93]
["2.3.4","CPU_17","Piso tátil direcional e de alerta, em concreto colorido, p/deficientes visuais, dimensões 30x30cm, aplicado com argamassa industrializada ac-ii, rejuntado, exclusive regularização de base","m2",58.08,{"$f":"IF(B34=\"\",\"\",VLOOKUP(B34,'RELAÇÃO DE COMPOSIÇÕES'!$A$10:$F$374,6,FALSE))","v":88.04},88.04,5113.3599999999997]
["2.3.5","CPU_18","Lastro de brita graduada apiloada e=10cm","m2",339.81,{"$f":"IF(B35=\"\",\"\",VLOOKUP(B35,'RELAÇÃO DE COMPOSIÇÕES'!$A$10:$F$374,6,FALSE))","v":21.57},{"$f":"IF(B35=\"\",\"\",ROUND(F35*(1+$H$6),2))","v":21.57},{"$f":"IF(B35=\"\",\"\",ROUND(E35*G35,2))","v":7329.7}]
["2.3.6","CPU_19","Execução de pavimento com aplicação de concreto asfáltico, camada de binder - exclusive carga e transporte. af_11/2019","m3",16.989999999999998,{"$f":"IF(B36=\"\",\"\",VLOOKUP(B36,'RELAÇÃO DE COMPOSIÇÕES'!$A$10:$F$374,6,FALSE))","v":933.04},933.04,15852.35]
["2.3.7","CPU_20","Execução de pavimento com aplicação de concreto asfáltico, camada de rolamento - exclusive carga e transporte. af_11/2019","m3",16.989999999999998,{"$f":"IF(B37=\"\",\"\",VLOOKUP(B37,'RELAÇÃO DE COMPOSIÇÕES'!$A$10:$F$374,6,FALSE))","v":984.91},984.91,16733.62]
["2.3.8","CPU_21","Transporte de material asfaltico, com caminhão com capacidade de 30000 l em rodovia pavimentada para distâncias médias de transporte superiores a 100 km. af_02/2016","txkm",19573.060000000001,{"$f":"IF(B38=\"\",\"\",VLOOKUP(B38,'RELAÇÃO DE COMPOSIÇÕES'!$A$10:$F$374,6,FALSE))","v":0.48},0.48,9395.07]
["2.3.9","CPU_22","Imprimação - execução com fornecimento de material","m2",339.81,{"$f":"IF(B39=\"\",\"\",VLOOKUP(B39,'RELAÇÃO DE COMPOSIÇÕES'!$A$10:$F$374,6,FALSE))","v":10.69},10.69,3632.57]
["2.3.10","CPU_23","Rampa padrão para acesso de deficientes a passeio público, em concreto simples Fck=25MPa, desempolada, com pintura indicativa em novacor, 02 demãos","un",1,{"$f":"IF(B40=\"\",\"\",VLOOKUP(B40,'RELAÇÃO DE COMPOSIÇÕES'!$A$10:$F$374,6,FALSE))","v":283.04000000000002},283.04000000000002,283.04000000000002]
["2.3.11","CPU_24","Assentamento de guia (meio-fio) em trecho reto, confeccionada em concreto pré-fabricado, dimensões 100x15x13x30 cm (comprimento x base inferior x base superior x altura), para vias urbanas (uso viário). af_06/2016","m",184.32,{"$f":"IF(B41=\"\",\"\",VLOOKUP(B41,'RELAÇÃO DE COMPOSIÇÕES'!$A$10:$F$374,6,FALSE))","v":29.44},29.44,5426.38]
["2.4",null,"COBERTURA"]
["2.4.1","CPU_25","Escavação manual de vala ou cava em material de 1ª categoria, profundidade até 1,50m","m3",10.98,{"$f":"IF(B43=\"\",\"\",VLOOKUP(B43,'RELAÇÃO DE COMPOSIÇÕES'!$A$10:$F$374,6,FALSE))","v":42.12},42.12,462.48]
["2.4.2","CPU_26","Concreto Armado fck=21,0MPa, usinado, bombeado, adensado e lançado, para Uso Geral, com formas planas em compensado resinado 12mm (05 usos)","m3",6.91,{"$f":"IF(B44=\"\",\"\",VLOOKUP(B44,'RELAÇÃO DE COMPOSIÇÕES'!$A$10:$F$374,6,FALSE))","v":1647.33},1647.33,11383.05]
["2.4.3","CPU_27","Estrutura Metálica p/ Cobertura c/Vigas-Treliça Pratt UDC75 e terças em UDC 127, 2 águas, sem lanternin, vãos 6,0 a 10,0m, pintado 1 d oxido ferro + 2 d esmalte epóxi branco, exceto forn. Telhas - Executada","m2",897.6,{"$f":"IF(B45=\"\",\"\",VLOOKUP(B45,'RELAÇÃO DE COMPOSIÇÕES'!$A$10:$F$374,6,FALSE))","v":124.07},124.07,111365.23]
["2.4.4","CPU_28","Telhamento com telha metálica em chapa de aço galvanizado natural ondulada e=0,5mm","m²",897.6,{"$f":"IF(B46=\"\",\"\",VLOOKUP(B46,'RELAÇÃO DE COMPOSIÇÕES'!$A$10:$F$374,6,FALSE))","v":55.77},55.77,50059.15]
["2.4.5","CPU_29","Fornecimento e instalação de brise metálico de alumínio ref. 84F, 45º L, da Fibrocell ou similar","m2",149.80000000000001,{"$f":"IF(B47=\"\",\"\",VLOOKUP(B47,'RELAÇÃO DE COMPOSIÇÕES'!$A$10:$F$374,6,FALSE))","v":210.14},210.14,31478.97]
["2.5",null,"ESCADA E RAMPA"]
["2.5.1","CPU_30","Escavação manual de vala ou cava em material de 1ª categoria, profundidade até 1,50m","m3",25.71,{"$f":"IF(B49=\"\",\"\",VLOOKUP(B49,'RELAÇÃO DE COMPOSIÇÕES'!$A$10:$F$374,6,FALSE))","v":42.12},42.12,1082.9100000000001]
["2.5.2","CPU_31","Alvenaria pedra calcárea argamassada c/ cimento e areia traço t-4 (1:5) - 1 saco cimento 50kg / 5 padiolas areia dim. 0,35z0,45x0,23m - Confecção mecânica e transporte","m3",14.28,{"$f":"IF(B50=\"\",\"\",VLOOKUP(B50,'RELAÇÃO DE COMPOSIÇÕES'!$A$10:$F$374,6,FALSE))","v":381.53},381.53,5448.25]
["2.5.3","CPU_32","Alvenaria bloco cerâmico vedação, 9x19x24cm, e=19cm, com argamassa t5 - 1:2:8 (cimento/cal/areia), junta=1cm - Rev.08","m2",139.34,{"$f":"IF(B51=\"\",\"\",VLOOKUP(B51,'RELAÇÃO DE COMPOSIÇÕES'!$A$10:$F$374,6,FALSE))","v":72.44},72.44,10093.790000000001]
["2.5.4","CPU_33","Chapisco em parede com argamassa traço t1 - 1:3 (cimento / areia) - Revisado 08/2015","m2",69.67,{"$f":"IF(B52=\"\",\"\",VLOOKUP(B52,'RELAÇÃO DE COMPOSIÇÕES'!$A$10:$F$374,6,FALSE))","v":5.14},5.14,358.1]
["2.5.5","CPU_34","Reboco ou emboço externo, de parede, com argamassa traço t5 - 1:2:8 (cimento / cal / areia), espessura 2,0 cm","m2",69.67,{"$f":"IF(B53=\"\",\"\",VLOOKUP(B53,'RELAÇÃO DE COMPOSIÇÕES'!$A$10:$F$374,6,FALSE))","v":27.21},27.21,1895.72]
["2.5.6","CPU_35","Aterro manual de áreas, sem aquisição de material, com espalhamento e compactação","m3",116.86,{"$f":"IF(B54=\"\",\"\",VLOOKUP(B54,'RELAÇÃO DE COMPOSIÇÕES'!$A$10:$F$374,6,FALSE))","v":42.12},42.12,4922.1400000000003]
["2.5.7","CPU_36","Pavimento em concreto armado fck=25mpa, desempolado, e=10cm, p/ sobrecargas de até 4t/m2 c/ tela soldada Q138","m2",119.86,{"$f":"IF(B55=\"\",\"\",VLOOKUP(B55,'RELAÇÃO DE COMPOSIÇÕES'!$A$10:$F$374,6,FALSE))","v":76.680000000000007},76.680000000000007,9190.86]
["2.6",null,"INSTALAÇÕES DE COMBATE A INCÊNDIO"]
["2.6.1","CPU_37","Extintor de incendio portatil com carga de po quimico seco (pqs) de 8 kg, classe bc","un",4,{"$f":"IF(B57=\"\",\"\",VLOOKUP(B57,'RELAÇÃO DE COMPOSIÇÕES'!$A$10:$F$374,6,FALSE))","v":192.72},192.72,770.88]
["2.6.2","CPU_38","Placa de indicativa de \"EXTINTOR\" em pvc, dim.: 20 x 20 cm","Un",4,{"$f":"IF(B58=\"\",\"\",VLOOKUP(B58,'RELAÇÃO DE COMPOSIÇÕES'!$A$10:$F$374,6,FALSE))","v":20.18},20.18,80.72]
["2.6.3","CPU_39","Luminaria de emergencia 30 leds, potencia 2 w, bateria de litio, autonomia de 6 horas","un",7,{"$f":"IF(B59=\"\",\"\",VLOOKUP(B59,'RELAÇÃO DE COMPOSIÇÕES'!$A$10:$F$374,6,FALSE))","v":22.66},22.66,158.62]
["2.7",null,"DIVERSOS"]
["2.7.1","CPU_40","Demarcação de pavimentos com pintura de 1 demão de resina acrílica, e aplicação de micro-esferas para sinalização horizontal (Estacionamentos, faixas de pedrestres, etc.)","m2",67.52,{"$f":"IF(B61=\"\",\"\",VLOOKUP(B61,'RELAÇÃO DE COMPOSIÇÕES'!$A$10:$F$374,6,FALSE))","v":12.54},12.54,846.7]
["2.7.2","CPU_41","Corrimão em tubo ferro galvanizado, alt=0,92m, com barras verticais dupla (2\") e barras horizontais nas extremidades de 2\", inclusive curva em aço (padrão) - para deficientes físicos","m",76.63,{"$f":"IF(B62=\"\",\"\",VLOOKUP(B62,'RELAÇÃO DE COMPOSIÇÕES'!$A$10:$F$374,6,FALSE))","v":178.49},178.49,13677.69]
["2.7.3","CPU_42","Banco de concreto em alvenaria de tijolos, assento em concreto armado, sem encosto, pintado com tinta acrílica, 2 demãos","m",32.76,{"$f":"IF(B63=\"\",\"\",VLOOKUP(B63,'RELAÇÃO DE COMPOSIÇÕES'!$A$10:$F$374,6,FALSE))","v":147.97},147.97,4847.5]
["2.7.4","CPU_43","Grama esmeralda em placas, fornecimento e plantio","m2",13.26,{"$f":"IF(B64=\"\",\"\",VLOOKUP(B64,'RELAÇÃO DE COMPOSIÇÕES'!$A$10:$F$374,6,FALSE))","v":14.86},14.86,197.04]
["2.7.5","CPU_44","Lixeira em fibra de vidro, com capacidade 50l, com suporte (poste), FIOBERGLASS, REF. CLPD1085 ou similar","un",4,{"$f":"IF(B65=\"\",\"\",VLOOKUP(B65,'RELAÇÃO DE COMPOSIÇÕES'!$A$10:$F$374,6,FALSE))","v":351.82},351.82,1407.28]
["2.7.6","CPU_45","Placa de inauguração de obra em alumínio 0,60 x 0,80 m","un",1,{"$f":"IF(B66=\"\",\"\",VLOOKUP(B66,'RELAÇÃO DE COMPOSIÇÕES'!$A$10:$F$374,6,FALSE))","v":1492.84},1492.84,1492.84]
["2.7.7","CPU_46","Limpeza geral","m2",585.74,{"$f":"IF(B67=\"\",\"\",VLOOKUP(B67,'RELAÇÃO DE COMPOSIÇÕES'!$A$10:$F$374,6,FALSE))","v":1.87},1.87,1095.33]
[3,null,"REFORMA DA PRAÇA TENISSON FONTES - ETAPA 1 - PRAÇA DE ALIMENTAÇÃO"]
["3.1",null,"PRAÇA DE ALIMENTAÇÃO"]
["3.1.1",null,"DEMOLIÇÕES/REMOÇÕES/RETIRADAS"]
["3.1.1.1","CPU_47","Demolição de pavimentação em paralelepípedo sem reaproveitamento","m2",594.19000000000005,{"$f":"IF(B71=\"\",\"\",VLOOKUP(B71,'RELAÇÃO DE COMPOSIÇÕES'!$A$10:$F$374,6,FALSE))","v":9.4600000000000009},9.4600000000000009,5621.04]
["3.1.1.2","CPU_48","Demolição de reboco","m2",455.46,{"$f":"IF(B72=\"\",\"\",VLOOKUP(B72,'RELAÇÃO DE COMPOSIÇÕES'!$A$10:$F$374,6,FALSE))","v":7.01},7.01,3192.77]
["3.1.1.3","CPU_49","Demolição de madeiramento em coberturas com telhas cerâmicas","m2",351.49,{"$f":"IF(B73=\"\",\"\",VLOOKUP(B73,'RELAÇÃO DE COMPOSIÇÕES'!$A$10:$F$374,6,FALSE))","v":20.64},20.64,7254.75]
["3.1.1.4","CPU_50","Remoção de telhamento com telhas cerâmicas","m2",351.49,{"$f":"IF(B74=\"\",\"\",VLOOKUP(B74,'RELAÇÃO DE COMPOSIÇÕES'!$A$10:$F$374,6,FALSE))","v":9.4600000000000009},9.4600000000000009,3325.1]
["3.1.1.5","CPU_51","Demolição manual de piso cimentado sobre lastro de concreto - Rev 01","m2",198.9,{"$f":"IF(B75=\"\",\"\",VLOOKUP(B75,'RELAÇÃO DE COMPOSIÇÕES'!$A$10:$F$374,6,FALSE))","v":20.64},20.64,4105.3]
["3.1.1.6","CPU_52","Carga manual de entulho em caminhao basculante 6 m3","m3",121.03,{"$f":"IF(B76=\"\",\"\",VLOOKUP(B76,'RELAÇÃO DE COMPOSIÇÕES'!$A$10:$F$374,6,FALSE))","v":21.29},21.29,2576.73]
["3.1.2",null,"ELEVAÇÕES"]
["3.1.2.1","CPU_53","Alvenaria bloco cerâmico vedação, 9x19x24cm, e=24cm, com argamassa t5 - 1:2:8 (cimento/cal/areia), junta=2cm","m2",39.700000000000003,{"$f":"IF(B78=\"\",\"\",VLOOKUP(B78,'RELAÇÃO DE COMPOSIÇÕES'!$A$10:$F$374,6,FALSE))","v":104.31},104.31,4141.1099999999997]
["3.1.2.2","CPU_54","Chapisco em parede com argamassa traço t1 - 1:3 (cimento / areia) - Revisado 08/2015","m2",425.24,{"$f":"IF(B79=\"\",\"\",VLOOKUP(B79,'RELAÇÃO DE COMPOSIÇÕES'!$A$10:$F$374,6,FALSE))","v":5.14},5.14,2185.73]
["3.1.2.3","CPU_55","Chapisco em parede, rústico,  com argamassa traço t1 - 1:3 (cimento / areia) - revisado 08/2015","m2",109.62,{"$f":"IF(B80=\"\",\"\",VLOOKUP(B80,'RELAÇÃO DE COMPOSIÇÕES'!$A$10:$F$374,6,FALSE))","v":15.68},15.68,1718.84]
["3.1.2.4","CPU_56","Cobogó de cimento, tipo \"escama\", dim: 50 x 50cm","m2",1,{"$f":"IF(B81=\"\",\"\",VLOOKUP(B81,'RELAÇÃO DE COMPOSIÇÕES'!$A$10:$F$374,6,FALSE))","v":100.85},100.85,100.85]
["3.1.2.5","CPU_57","Reboco ou emboço interno, de parede, com argamassa traço t6 - 1:2:10 (cimento / cal / areia), espessura 1,5 cm","m2",425.24,{"$f":"IF(B82=\"\",\"\",VLOOKUP(B82,'RELAÇÃO DE COMPOSIÇÕES'!$A$10:$F$374,6,FALSE))","v":24.61},24.61,10465.16]
["3.1.3",null,"COBERTURA"]
["3.1.3.1","CPU_58","Madeiramento em massaranduba para telhado, peça principal serrada 14cm x 25cm, com abertura de encaixes","m",139,{"$f":"IF(B84=\"\",\"\",VLOOKUP(B84,'RELAÇÃO DE COMPOSIÇÕES'!$A$10:$F$374,6,FALSE))","v":232.36},232.36,32298.04]
["3.1.3.2","CPU_59","Madeiramento em massaranduba/madeira de lei, acabamento serrado c/ riipão 5x3 e ripa 5x1,5, exclusive peças principais","m2",361.36,{"$f":"IF(B85=\"\",\"\",VLOOKUP(B85,'RELAÇÃO DE COMPOSIÇÕES'!$A$10:$F$374,6,FALSE))","v":75.92},75.92,27434.45]
["3.1.3.3","CPU_60","Telhamento com telha cerâmica tipo colonial, 1ª qualid, cor clara, Itabaianinha ou similar - Rev 02","m2",361.36,{"$f":"IF(B86=\"\",\"\",VLOOKUP(B86,'RELAÇÃO DE COMPOSIÇÕES'!$A$10:$F$374,6,FALSE))","v":66.56},66.56,24052.12]
["3.1.3.4","CPU_61","Forro em réguas de pvc, frisado, para ambientes comerciais, inclusive estrutura de fixação. af_05/2017_p","m2",230.54,{"$f":"IF(B87=\"\",\"\",VLOOKUP(B87,'RELAÇÃO DE COMPOSIÇÕES'!$A$10:$F$374,6,FALSE))","v":53.22},53.22,12269.34]
["3.1.4",null,"PAVIMENTAÇÕES",null,null,{"$f":"IF(B88=\"\",\"\",VLOOKUP(B88,'RELAÇÃO DE COMPOSIÇÕES'!$A$10:$F$374,6,FALSE))","v":""},"",""]
["3.1.4.1","CPU_62","Regularização Manual","m2",288.97000000000003,{"$f":"IF(B89=\"\",\"\",VLOOKUP(B89,'RELAÇÃO DE COMPOSIÇÕES'!$A$10:$F$374,6,FALSE))","v":4.2},4.2,1213.67]
["3.1.4.2","CPU_63","Lastro de brita graduada apiloada e=10cm","m2",615.52,{"$f":"IF(B90=\"\",\"\",VLOOKUP(B90,'RELAÇÃO DE COMPOSIÇÕES'!$A$10:$F$374,6,FALSE))","v":21.57},21.57,13276.77]
["3.1.4.3","CPU_64","Piso em concreto simples desempolado, fck = 21 MPa, e = 10 cm - Não inclui formas para juntas de concretagem","m²",288.97000000000003,{"$f":"IF(B91=\"\",\"\",VLOOKUP(B91,'RELAÇÃO DE COMPOSIÇÕES'!$A$10:$F$374,6,FALSE))","v":52.29},52.29,15110.24]
["3.1.4.4","CPU_65","Meio-fio de concreto simples, rejuntado com argamassa de cimento e areia no traço 1:3","m",92.83,{"$f":"IF(B92=\"\",\"\",VLOOKUP(B92,'RELAÇÃO DE COMPOSIÇÕES'!$A$10:$F$374,6,FALSE))","v":24.85},24.85,2306.83]
["3.1.4.5","CPU_66","Piso alta resistencia, colorido, e=10mm, aplicado com juntas, polido até o esmeril 400 e encerado","m2",275.7,{"$f":"IF(B93=\"\",\"\",VLOOKUP(B93,'RELAÇÃO DE COMPOSIÇÕES'!$A$10:$F$374,6,FALSE))","v":42.99},42.99,11852.34]
["3.1.4.6","CPU_67","Pavimentação em concreto usinado, bomb., lançado e adensado, não armado, pigment. BAYFERROX preto ou similar, fck=21Mpa, e = 10cm,regulariz. compac. subleito, lona plástica, incl. juntas serradas 5x10 a 40mm - Rev 03 (CINZA)","m²",20,{"$f":"IF(B94=\"\",\"\",VLOOKUP(B94,'RELAÇÃO DE COMPOSIÇÕES'!$A$10:$F$374,6,FALSE))","v":100.19},100.19,2003.8]
["3.1.4.7","CPU_68","Pavimentação em concreto usinado, bomb., lançado e adensado, não armado, pigment. BAYFERROX preto ou similar, fck=21Mpa, e = 10cm,regulariz. compac. subleito, lona plástica, incl. juntas serradas 5x10 a 40mm - Rev 03 (VERMELHO)","m²",30.85,{"$f":"IF(B95=\"\",\"\",VLOOKUP(B95,'RELAÇÃO DE COMPOSIÇÕES'!$A$10:$F$374,6,FALSE))","v":100.19},100.19,3090.86]
["3.1.4.8","CPU_69","Revestimento cerâmico para piso ou parede, 53 x 53 cm, Arielle, linha atenas, cor cinza ou bege, ou similar, PEI-5, aplicado com argamassa industrializada ac-ii, rejuntado, exclusive regularização de base ou emboço","m2",49.45,{"$f":"IF(B96=\"\",\"\",VLOOKUP(B96,'RELAÇÃO DE COMPOSIÇÕES'!$A$10:$F$374,6,FALSE))","v":43.98},43.98,2174.81]
["3.1.4.9","CPU_70","Canaleta de drenagem em alvenaria de tijolo maciço, dimensões internas 40 x 50cm, com tampa de concreto, inclusive escavação manual","m",69.5,{"$f":"IF(B97=\"\",\"\",VLOOKUP(B97,'RELAÇÃO DE COMPOSIÇÕES'!$A$10:$F$374,6,FALSE))","v":257.45},257.45,17892.78]
["3.1.5",null,"REVESTIMENTO BOXES E BANHEIROS"]
["3.1.5.1","CPU_71","Revestimento cerâmico para piso ou parede, 20 x 20 cm, Elizabeth ou similar, linha Cristal Branco, aplicado c/argamassa industrializada ac-ii, rejuntado, exclusive regularização de base ou emboço","m2",346.59,{"$f":"IF(B99=\"\",\"\",VLOOKUP(B99,'RELAÇÃO DE COMPOSIÇÕES'!$A$10:$F$374,6,FALSE))","v":43.45},{"$f":"IF(B99=\"\",\"\",ROUND(F99*(1+$H$6),2))","v":43.45},{"$f":"IF(B99=\"\",\"\",ROUND(E99*G99,2))","v":15059.34}]
["3.1.6",null,"ESQUADRIAS"]
["3.1.6.1","CPU_72","Soleira em granito branco fortaleza, l = 15 cm, e = 2 cm","m",5.8,{"$f":"IF(B101=\"\",\"\",VLOOKUP(B101,'RELAÇÃO DE COMPOSIÇÕES'!$A$10:$F$374,6,FALSE))","v":60.29},60.29,349.68]
["3.1.6.2","CPU_73","Reboco ou emboço interno, de parede, com argamassa traço t6 - 1:2:10 (cimento / cal / areia), espessura 1,5 cm","m2",9.83,{"$f":"IF(B102=\"\",\"\",VLOOKUP(B102,'RELAÇÃO DE COMPOSIÇÕES'!$A$10:$F$374,6,FALSE))","v":24.61},24.61,241.92]
["3.1.6.3","CPU_74","Divisória em granito bege ipanema polido, e=3cm , inclusive montagem com ferragens","m2",17.48,{"$f":"IF(B103=\"\",\"\",VLOOKUP(B103,'RELAÇÃO DE COMPOSIÇÕES'!$A$10:$F$374,6,FALSE))","v":351.31},351.31,6140.9]
["3.1.6.4","CPU_75","Porta em madeira compensada (canela), lisa, semi-ôca, (0,60 x 1,60 a 1,80m), p/pintura, inclusive ferragens (livre/ocupado), exclusive batente, para uso em divisórias granito ou marmore","un",6,{"$f":"IF(B104=\"\",\"\",VLOOKUP(B104,'RELAÇÃO DE COMPOSIÇÕES'!$A$10:$F$374,6,FALSE))","v":798.07},798.07,4788.42]
["3.1.6.5","CPU_76","Porta em madeira compensada (canela), lisa, semi-ôca, 0.90 x 2.10 m, para sanitário de deficiente físico (inclusive batente, ferragens, fechadura, suporte e chapa de alumínio e=1mm) - Rev 03","un",2,{"$f":"IF(B105=\"\",\"\",VLOOKUP(B105,'RELAÇÃO DE COMPOSIÇÕES'!$A$10:$F$374,6,FALSE))","v":894.58},894.58,1789.16]
["3.1.6.6","CPU_77","Porta em madeira compensada (canela), lisa, semi-ôca, 0.80 x 2.10 m, inclusive batente e ferragens","un",5,{"$f":"IF(B106=\"\",\"\",VLOOKUP(B106,'RELAÇÃO DE COMPOSIÇÕES'!$A$10:$F$374,6,FALSE))","v":530.63},530.63,2653.15]
["3.1.6.7","CPU_78","Porta em aço, em chapa galvanizada nº24, raiada, de enrolar","m2",129.84,{"$f":"IF(B107=\"\",\"\",VLOOKUP(B107,'RELAÇÃO DE COMPOSIÇÕES'!$A$10:$F$374,6,FALSE))","v":195.69},195.69,25408.39]
["3.1.6.8","CPU_79","Portão em chapa de ferro veneziana tipo Z inclusive dobradiças, ferrolhos e chumbadores em chapa de ferro e=5mm","m2",36,{"$f":"IF(B108=\"\",\"\",VLOOKUP(B108,'RELAÇÃO DE COMPOSIÇÕES'!$A$10:$F$374,6,FALSE))","v":527.54},527.54,18991.439999999999]
["3.1.7",null,"PINTURA"]
["3.1.7.1","CPU_80","Pintura para exteriores, sobre paredes, com lixamento, aplicação de 01 demão de selador acrílico, 01 demão de textura acrílica branca e 02 demãos de tinta acrílica convencional","m2",334.59,{"$f":"IF(B110=\"\",\"\",VLOOKUP(B110,'RELAÇÃO DE COMPOSIÇÕES'!$A$10:$F$374,6,FALSE))","v":34},34,11376.06]
["3.1.7.2","CPU_81","Pintura acrilica em piso cimentado duas demaos (CHAPISCO FACHADA)","m2",78.099999999999994,{"$f":"IF(B111=\"\",\"\",VLOOKUP(B111,'RELAÇÃO DE COMPOSIÇÕES'!$A$10:$F$374,6,FALSE))","v":13.9},13.9,1085.5899999999999]
["3.1.7.3","CPU_82","Pintura para interiores, sobre paredes ou tetos, com lixamento, aplicação de 01 demão de líquido selador acrílico, 01 demão de textura acrílica branca e 02 demãos de tinta pva latex convencional para interiores","m2",86.78,{"$f":"IF(B112=\"\",\"\",VLOOKUP(B112,'RELAÇÃO DE COMPOSIÇÕES'!$A$10:$F$374,6,FALSE))","v":33.5},33.5,2907.13]
["3.1.7.4","CPU_83","Pintura de proteção sobre superfícies metálicas com aplicação de 01 demão de tinta anti-corrosiva zarcão - R2","m2",331.67,{"$f":"IF(B113=\"\",\"\",VLOOKUP(B113,'RELAÇÃO DE COMPOSIÇÕES'!$A$10:$F$374,6,FALSE))","v":8.15},8.15,2703.11]
["3.1.7.5","CPU_84","Pintura de acabamento com aplicação de 02 demãos de esmalte sobre superfícies metálicas - R1","m2",331.67,{"$f":"IF(B114=\"\",\"\",VLOOKUP(B114,'RELAÇÃO DE COMPOSIÇÕES'!$A$10:$F$374,6,FALSE))","v":14.8},14.8,4908.72]
["3.1.7.6","CPU_85","Pintura de acabamento com lixamento e aplicação de 02 demãos de esmalte sintético sobre madeira - R1","m2",17.940000000000001,{"$f":"IF(B115=\"\",\"\",VLOOKUP(B115,'RELAÇÃO DE COMPOSIÇÕES'!$A$10:$F$374,6,FALSE))","v":14.97},14.97,268.56]
["3.1.8",null,"PAISAGISMO"]
["3.1.8.1","CPU_86","Grama esmeralda em placas, fornecimento e plantio","m2",85.76,{"$f":"IF(B117=\"\",\"\",VLOOKUP(B117,'RELAÇÃO DE COMPOSIÇÕES'!$A$10:$F$374,6,FALSE))","v":14.86},14.86,1274.3900000000001]
["3.1.8.2","CPU_87","Fornecimento e plantio de herbáceas ornamentais (pingo de ouro)","un",20,{"$f":"IF(B118=\"\",\"\",VLOOKUP(B118,'RELAÇÃO DE COMPOSIÇÕES'!$A$10:$F$374,6,FALSE))","v":2.4500000000000002},2.4500000000000002,49]
["3.1.8.3","CPU_88","Fornecimento e plantio de palmeira mini imperial, média","un",4,{"$f":"IF(B119=\"\",\"\",VLOOKUP(B119,'RELAÇÃO DE COMPOSIÇÕES'!$A$10:$F$374,6,FALSE))","v":94.83},94.83,379.32]
["3.1.9",null,"DIVERSOS"]
["3.1.9.1","CPU_89","Corrimão duplo central em tubo de ferro galvanizado 1 1/2\", com chumbadores para fixação no piso","m",3.9,{"$f":"IF(B121=\"\",\"\",VLOOKUP(B121,'RELAÇÃO DE COMPOSIÇÕES'!$A$10:$F$374,6,FALSE))","v":243.13},243.13,948.21]
["3.1.9.2","CPU_90","Lixeira em fibra de vidro, com capacidade 50l, com suporte (poste), FIOBERGLASS, REF. CLPD1085 ou similar","un",4,{"$f":"IF(B122=\"\",\"\",VLOOKUP(B122,'RELAÇÃO DE COMPOSIÇÕES'!$A$10:$F$374,6,FALSE))","v":351.82},351.82,1407.28]
["3.1.9.3","CPU_91","Banco de concreto pre-moldado com encosto e pintura (padrão emurb)","un",4,{"$f":"IF(B123=\"\",\"\",VLOOKUP(B123,'RELAÇÃO DE COMPOSIÇÕES'!$A$10:$F$374,6,FALSE))","v":724.36},724.36,2897.44]
["3.1.9.4","CPU_92","Banco de concreto em alvenaria de tijolos, assento em concreto armado, sem encosto, pintado com tinta acrílica, 2 demãos","m",12,{"$f":"IF(B124=\"\",\"\",VLOOKUP(B124,'RELAÇÃO DE COMPOSIÇÕES'!$A$10:$F$374,6,FALSE))","v":147.97},147.97,1775.64]
["3.1.9.5","CPU_93","Placa de inauguração de obra em alumínio 0,60 x 0,80 m","un",1,{"$f":"IF(B125=\"\",\"\",VLOOKUP(B125,'RELAÇÃO DE COMPOSIÇÕES'!$A$10:$F$374,6,FALSE))","v":1492.84},1492.84,1492.84]
["3.1.9.6","CPU_94","Limpeza geral","m2",826.7,{"$f":"IF(B126=\"\",\"\",VLOOKUP(B126,'RELAÇÃO DE COMPOSIÇÕES'!$A$10:$F$374,6,FALSE))","v":1.87},1.87,1545.93]
["3.2",null,"INSTALAÇÕES HIDRÁULICAS"]
["3.2.1","CPU_95","Registro gaveta bruto  1/2\" (ref 1510 hd)  Deca ou similar","un",4,{"$f":"IF(B128=\"\",\"\",VLOOKUP(B128,'RELAÇÃO DE COMPOSIÇÕES'!$A$10:$F$374,6,FALSE))","v":40.04},40.04,160.16]
["3.2.2","CPU_96","Adaptador de pvc rígido soldável c/ flanges livres p/ caixa de água diâm = 20mm x 1/2\"","un",4,{"$f":"IF(B129=\"\",\"\",VLOOKUP(B129,'RELAÇÃO DE COMPOSIÇÕES'!$A$10:$F$374,6,FALSE))","v":10.210000000000001},10.210000000000001,40.840000000000003]
["3.2.3","CPU_97","Adaptador de pvc rígido soldável curto c/ bolsa e rosca p/ registro diâm = 20mm x 1/2\"","un",8,{"$f":"IF(B130=\"\",\"\",VLOOKUP(B130,'RELAÇÃO DE COMPOSIÇÕES'!$A$10:$F$374,6,FALSE))","v":6.69},6.69,53.52]
["3.2.4","CPU_98","Curva 45º de pvc rígido soldável, marrom  diâm = 20mm","un",1,{"$f":"IF(B131=\"\",\"\",VLOOKUP(B131,'RELAÇÃO DE COMPOSIÇÕES'!$A$10:$F$374,6,FALSE))","v":7.48},7.48,7.48]
["3.2.5","CPU_99","Curva 90º de pvc rígido soldável, marrom  diâm = 20mm","un",14,{"$f":"IF(B132=\"\",\"\",VLOOKUP(B132,'RELAÇÃO DE COMPOSIÇÕES'!$A$10:$F$374,6,FALSE))","v":7.9},7.9,110.6]
["3.2.6","CPU_100","Luva de pvc rígido soldável, marrom, diâm = 20mm","un",2,{"$f":"IF(B133=\"\",\"\",VLOOKUP(B133,'RELAÇÃO DE COMPOSIÇÕES'!$A$10:$F$374,6,FALSE))","v":3.57},3.57,7.14]
["3.2.7","CPU_101","Tubo pvc rígido soldável marrom p/ água, d = 20 mm (1/2\")","m",70.8,{"$f":"IF(B134=\"\",\"\",VLOOKUP(B134,'RELAÇÃO DE COMPOSIÇÕES'!$A$10:$F$374,6,FALSE))","v":8.94},8.94,632.95000000000005]
["3.2.8","CPU_102","Tubo pvc rígido soldável marrom p/ água, d = 50 mm (1 1/2\")","m",0.5,{"$f":"IF(B135=\"\",\"\",VLOOKUP(B135,'RELAÇÃO DE COMPOSIÇÕES'!$A$10:$F$374,6,FALSE))","v":34.090000000000003},34.090000000000003,17.05]
["3.2.9","CPU_103","Tê 90º de pvc rígido soldável, marrom  diâm = 20mm","un",3,{"$f":"IF(B136=\"\",\"\",VLOOKUP(B136,'RELAÇÃO DE COMPOSIÇÕES'!$A$10:$F$374,6,FALSE))","v":7.44},7.44,22.32]
["3.2.10","CPU_104","Tê 90º de pvc rígido soldável, marrom  diâm = 50mm","un",4,{"$f":"IF(B137=\"\",\"\",VLOOKUP(B137,'RELAÇÃO DE COMPOSIÇÕES'!$A$10:$F$374,6,FALSE))","v":18.52},18.52,74.08]
["3.2.11","CPU_105","Cuba de aço inox 304, dimensões 34 x 56cm, para instalação em bancada, c/ válvula cromada (deca ref 1623), sifão  cromado (deca ref c1680), torneira cromada (deca linha c40 ref1159) e engate de plástico ou similares","un",16,{"$f":"IF(B138=\"\",\"\",VLOOKUP(B138,'RELAÇÃO DE COMPOSIÇÕES'!$A$10:$F$374,6,FALSE))","v":485.99},485.99,7775.84]
["3.2.12","CPU_106","Bancada em granito branco fortaleza, e = 2cm","m2",32.200000000000003,{"$f":"IF(B139=\"\",\"\",VLOOKUP(B139,'RELAÇÃO DE COMPOSIÇÕES'!$A$10:$F$374,6,FALSE))","v":373.35},373.35,12021.87]
["3.2.13","CPU_107","Cuba de embutir, oval, CELITE 10116 ou similar, inclusive sifão cromado, válvula cromada para lavatório, engate cromado","un",10,{"$f":"IF(B140=\"\",\"\",VLOOKUP(B140,'RELAÇÃO DE COMPOSIÇÕES'!$A$10:$F$374,6,FALSE))","v":323.14},323.14,3231.4]
["3.2.14","CPU_108","Lavatório louça (Deca-Ravena ref L-91 ou similares) sem coluna, c/ sifão cromado, válvula cromada, engate cromado, exclusive torneira","un",3,{"$f":"IF(B141=\"\",\"\",VLOOKUP(B141,'RELAÇÃO DE COMPOSIÇÕES'!$A$10:$F$374,6,FALSE))","v":425.92},425.92,1277.76]
["3.2.15","CPU_109","Mictório de louça branca com sifão integrado, engate flexivel cromado 1/2\", registro de pressão 1/2\" com canopla cromada acabamento simples e conjunto de fixação","un",3,{"$f":"IF(B142=\"\",\"\",VLOOKUP(B142,'RELAÇÃO DE COMPOSIÇÕES'!$A$10:$F$374,6,FALSE))","v":471.35},471.35,1414.05]
["3.2.16","CPU_110","Tanque de louça branca suspenso, 18l ou equivalente, incluso sifão tipo garrafa em pvc, válvula plástica e torneira de metal cromado padrão popular - fornecimento e instalação. af_01/2020","un",2,{"$f":"IF(B143=\"\",\"\",VLOOKUP(B143,'RELAÇÃO DE COMPOSIÇÕES'!$A$10:$F$374,6,FALSE))","v":408.17},408.17,816.34]
["3.2.17","CPU_111","Torneira cromada de mesa, 1/2? ou 3/4?, para lavatório, padrão médio - fornecimento e instalação. af_01/2020","un",13,{"$f":"IF(B144=\"\",\"\",VLOOKUP(B144,'RELAÇÃO DE COMPOSIÇÕES'!$A$10:$F$374,6,FALSE))","v":71.98},71.98,935.74]
["3.2.18","CPU_112","Vaso sanitario c/caixa de descarga acoplada, c/saída horizontal, linha ravena, DECA ou similar, inclusive assento ASTRA TPK ou similar, conj. de fixação DECA SP13 ou similar, anel de vedação e engate plástico","un",12,{"$f":"IF(B145=\"\",\"\",VLOOKUP(B145,'RELAÇÃO DE COMPOSIÇÕES'!$A$10:$F$374,6,FALSE))","v":411.95},411.95,4943.3999999999996]
["3.2.19","CPU_113","Vaso sanitário convencional, adaptado p/ deficiente físico com elevação do piso, linha popular, ELIZABETH ou similar, com assento plastico universal branco, cj.fixação, tubo de ligação e engate plástico, exceto cx. descarga - Rev 02","un",3,{"$f":"IF(B146=\"\",\"\",VLOOKUP(B146,'RELAÇÃO DE COMPOSIÇÕES'!$A$10:$F$374,6,FALSE))","v":245.06},245.06,735.18]
["3.2.20","CPU_114","Caixa de descarga de embutir com acabamento inox (Montana, linha Montreal ou similar)","un",3,{"$f":"IF(B147=\"\",\"\",VLOOKUP(B147,'RELAÇÃO DE COMPOSIÇÕES'!$A$10:$F$374,6,FALSE))","v":313.22000000000003},313.22000000000003,939.66]
["3.2.21","CPU_115","Registro gaveta bruto, d = 65 mm (2 1/2\") - ref.1502-B, Pn16, Deca ou similar","un",2,{"$f":"IF(B148=\"\",\"\",VLOOKUP(B148,'RELAÇÃO DE COMPOSIÇÕES'!$A$10:$F$374,6,FALSE))","v":239.71},239.71,479.42]
["3.2.22","CPU_116","Registro gaveta bruto, d = 25 mm (1\") - ref.1502-B, Pn16, Deca ou similar","un",7,{"$f":"IF(B149=\"\",\"\",VLOOKUP(B149,'RELAÇÃO DE COMPOSIÇÕES'!$A$10:$F$374,6,FALSE))","v":69.7},69.7,487.9]
["3.2.23","CPU_117","Registro gaveta bruto, d = 40 mm (1 1/2\") - ref.1502-B, Pn16, Deca ou similar","un",5,{"$f":"IF(B150=\"\",\"\",VLOOKUP(B150,'RELAÇÃO DE COMPOSIÇÕES'!$A$10:$F$374,6,FALSE))","v":97.76},97.76,488.8]
["3.2.24","CPU_118","Registro gaveta c/ canopla cromada, d=25mm (1\") - ref.1509 Deca ou similar","un",25,{"$f":"IF(B151=\"\",\"\",VLOOKUP(B151,'RELAÇÃO DE COMPOSIÇÕES'!$A$10:$F$374,6,FALSE))","v":96.8},96.8,2420]
["3.2.25","CPU_119","Fornecimento e instalação de torneira pressmatic 120 de parede, ref. 17160706, docol ou similar","un",3,{"$f":"IF(B152=\"\",\"\",VLOOKUP(B152,'RELAÇÃO DE COMPOSIÇÕES'!$A$10:$F$374,6,FALSE))","v":251.89},251.89,755.67]
["3.2.26","CPU_120","Joelho de redução 90º de pvc rígido soldável, marrom  diâm = 32 x 25mm","un",30,{"$f":"IF(B153=\"\",\"\",VLOOKUP(B153,'RELAÇÃO DE COMPOSIÇÕES'!$A$10:$F$374,6,FALSE))","v":9.41},9.41,282.3]
["3.2.27","CPU_121","Adaptador de pvc rígido soldável c/ flanges livres p/ caixa de água diâm = 32mm x 1\"","un",14,{"$f":"IF(B154=\"\",\"\",VLOOKUP(B154,'RELAÇÃO DE COMPOSIÇÕES'!$A$10:$F$374,6,FALSE))","v":17.37},17.37,243.18]
["3.2.28","CPU_122","Adaptador de pvc rígido soldável c/ flanges livres p/ caixa de água diâm = 50mm x 11/2\"","un",6,{"$f":"IF(B155=\"\",\"\",VLOOKUP(B155,'RELAÇÃO DE COMPOSIÇÕES'!$A$10:$F$374,6,FALSE))","v":31.58},31.58,189.48]
["3.2.29","CPU_123","Adaptador de pvc rígido soldável c/ flanges livres p/ caixa de água diâm = 75mm x 21/2\"","un",2,{"$f":"IF(B156=\"\",\"\",VLOOKUP(B156,'RELAÇÃO DE COMPOSIÇÕES'!$A$10:$F$374,6,FALSE))","v":134.31},134.31,268.62]
["3.2.30","CPU_124","Adaptador curto com bolsa e rosca para registro, pvc, soldável, dn 32mm x 1?, instalado em ramal de distribuição de água - fornecimento e instalação. af_12/2014","un",64,{"$f":"IF(B157=\"\",\"\",VLOOKUP(B157,'RELAÇÃO DE COMPOSIÇÕES'!$A$10:$F$374,6,FALSE))","v":4.8},4.8,307.2]
["3.2.31","CPU_125","Adaptador curto com bolsa e rosca para registro, pvc, soldável, dn 50mm x 1.1/2?, instalado em prumada de água - fornecimento e instalação. af_12/2014","un",10,{"$f":"IF(B158=\"\",\"\",VLOOKUP(B158,'RELAÇÃO DE COMPOSIÇÕES'!$A$10:$F$374,6,FALSE))","v":7.62},7.62,76.2]
["3.2.32","CPU_126","Adaptador curto com bolsa e rosca para registro, pvc, soldável, dn 75mm x 2.1/2?, instalado em prumada de água - fornecimento e instalação. af_12/2014","un",10,{"$f":"IF(B159=\"\",\"\",VLOOKUP(B159,'RELAÇÃO DE COMPOSIÇÕES'!$A$10:$F$374,6,FALSE))","v":20.59},20.59,205.9]
["3.2.33","CPU_127","Bucha de redução longa de pvc rígido soldável, marrom, diâm = 50 x 32mm","un",21,{"$f":"IF(B160=\"\",\"\",VLOOKUP(B160,'RELAÇÃO DE COMPOSIÇÕES'!$A$10:$F$374,6,FALSE))","v":14.33},14.33,300.93]
["3.2.34","CPU_128","Bucha de redução longa de pvc rigido soldável, marrom, diâm = 75 x 50mm","un",1,{"$f":"IF(B161=\"\",\"\",VLOOKUP(B161,'RELAÇÃO DE COMPOSIÇÕES'!$A$10:$F$374,6,FALSE))","v":25.85},25.85,25.85]
["3.2.35","CPU_129","Curva 90 graus, pvc, soldável, dn 32mm, instalado em ramal ou sub-ramal de água - fornecimento e instalação. af_12/2014","un",42,{"$f":"IF(B162=\"\",\"\",VLOOKUP(B162,'RELAÇÃO DE COMPOSIÇÕES'!$A$10:$F$374,6,FALSE))","v":12.43},12.43,522.05999999999995]
["3.2.36","CPU_130","Curva 90 graus, pvc, soldável, dn 50mm, instalado em prumada de água - fornecimento e instalação. af_12/2014","un",11,{"$f":"IF(B163=\"\",\"\",VLOOKUP(B163,'RELAÇÃO DE COMPOSIÇÕES'!$A$10:$F$374,6,FALSE))","v":16.61},{"$f":"IF(B163=\"\",\"\",ROUND(F163*(1+$H$6),2))","v":16.61},{"$f":"IF(B163=\"\",\"\",ROUND(E163*G163,2))","v":182.71}]
["3.2.37","CPU_131","Curva 90 graus, pvc, soldável, dn 75mm, instalado em prumada de água - fornecimento e instalação. af_12/2014","un",1,{"$f":"IF(B164=\"\",\"\",VLOOKUP(B164,'RELAÇÃO DE COMPOSIÇÕES'!$A$10:$F$374,6,FALSE))","v":48.19},48.19,48.19]
["3.2.38","CPU_132","Joelho 90° pvc rígido soldável e c/rosca, diam = 25mm x 1/2\"","un",15,{"$f":"IF(B165=\"\",\"\",VLOOKUP(B165,'RELAÇÃO DE COMPOSIÇÕES'!$A$10:$F$374,6,FALSE))","v":6.35},6.35,95.25]
["3.2.39","CPU_133","Luva de pvc rígido soldável, marrom, diâm = 32mm","un",25,{"$f":"IF(B166=\"\",\"\",VLOOKUP(B166,'RELAÇÃO DE COMPOSIÇÕES'!$A$10:$F$374,6,FALSE))","v":5.12},5.12,128]
["3.2.40","CPU_134","Tubo pvc rígido soldável marrom p/ água, d = 25 mm (3/4\")","m",19.399999999999999,{"$f":"IF(B167=\"\",\"\",VLOOKUP(B167,'RELAÇÃO DE COMPOSIÇÕES'!$A$10:$F$374,6,FALSE))","v":10.47},10.47,203.12]
["3.2.41","CPU_135","Tubo pvc rígido soldável marrom p/ água, d = 32 mm (1\")","m",129.91999999999999,{"$f":"IF(B168=\"\",\"\",VLOOKUP(B168,'RELAÇÃO DE COMPOSIÇÕES'!$A$10:$F$374,6,FALSE))","v":14.27},14.27,1853.96]
["3.2.42","CPU_136","Tubo pvc rígido soldável marrom p/ água, d = 50 mm (1 1/2\")","m",93.37,{"$f":"IF(B169=\"\",\"\",VLOOKUP(B169,'RELAÇÃO DE COMPOSIÇÕES'!$A$10:$F$374,6,FALSE))","v":34.090000000000003},34.090000000000003,3182.98]
["3.2.43","CPU_137","Tubo pvc rígido soldável marrom p/ água, d = 75 mm (2 1/2\")","m",6.55,{"$f":"IF(B170=\"\",\"\",VLOOKUP(B170,'RELAÇÃO DE COMPOSIÇÕES'!$A$10:$F$374,6,FALSE))","v":61.42},61.42,402.3]
["3.2.44","CPU_138","Tê 90º de pvc rígido soldável, marrom  diâm = 32mm","un",11,{"$f":"IF(B171=\"\",\"\",VLOOKUP(B171,'RELAÇÃO DE COMPOSIÇÕES'!$A$10:$F$374,6,FALSE))","v":10.02},10.02,110.22]
["3.2.45","CPU_139","Tê 90º de pvc rígido soldável, marrom  diâm = 50mm","un",12,{"$f":"IF(B172=\"\",\"\",VLOOKUP(B172,'RELAÇÃO DE COMPOSIÇÕES'!$A$10:$F$374,6,FALSE))","v":18.52},18.52,222.24]
["3.2.46","CPU_140","Tê 90º de pvc rígido soldável, marrom  diâm = 75mm","un",1,{"$f":"IF(B173=\"\",\"\",VLOOKUP(B173,'RELAÇÃO DE COMPOSIÇÕES'!$A$10:$F$374,6,FALSE))","v":60.85},60.85,60.85]
["3.2.47","CPU_141","Tê de redução 90º de pvc rígido soldável, marrom  diâm = 32 x 25mm","un",20,{"$f":"IF(B174=\"\",\"\",VLOOKUP(B174,'RELAÇÃO DE COMPOSIÇÕES'!$A$10:$F$374,6,FALSE))","v":11.82},11.82,236.4]
["3.2.48","CPU_142","Tê de redução 90º de pvc rígido soldável, marrom  diâm = 50 x 32mm","un",4,{"$f":"IF(B175=\"\",\"\",VLOOKUP(B175,'RELAÇÃO DE COMPOSIÇÕES'!$A$10:$F$374,6,FALSE))","v":22.45},22.45,89.8]
["3.2.49","CPU_143","Tê de redução 90º de pvc rígido soldável, marrom  diâm = 75 x 50mm","un",2,{"$f":"IF(B176=\"\",\"\",VLOOKUP(B176,'RELAÇÃO DE COMPOSIÇÕES'!$A$10:$F$374,6,FALSE))","v":55.51},55.51,111.02]
["3.2.50","CPU_144","Joelho 90º pvc rígido soldável c/bucha de latão,  d= 25mm x 3/4\"","un",3,{"$f":"IF(B177=\"\",\"\",VLOOKUP(B177,'RELAÇÃO DE COMPOSIÇÕES'!$A$10:$F$374,6,FALSE))","v":12.47},12.47,37.409999999999997]
["3.2.51","CPU_145","Joelho 90º red. pvc rígido soldável c/bucha de latão, diâm= 25mmx1/2\"","un",32,{"$f":"IF(B178=\"\",\"\",VLOOKUP(B178,'RELAÇÃO DE COMPOSIÇÕES'!$A$10:$F$374,6,FALSE))","v":10.98},10.98,351.36]
["3.3",null,"INSTALAÇÕES DE ESGOTAMENTO SANITÁRIO"]
["3.3.1","CPU_146","Caixa de gordura  0.60 x 0.60 x 0.60m","un",8,{"$f":"IF(B180=\"\",\"\",VLOOKUP(B180,'RELAÇÃO DE COMPOSIÇÕES'!$A$10:$F$374,6,FALSE))","v":479.51},479.51,3836.08]
["3.3.2","CPU_147","Caixa de inspeção  0.60 x 0.60 x 0.60m","un",8,{"$f":"IF(B181=\"\",\"\",VLOOKUP(B181,'RELAÇÃO DE COMPOSIÇÕES'!$A$10:$F$374,6,FALSE))","v":479.51},479.51,3836.08]
["3.3.3","CPU_148","Caixa de passagem em alvenaria de tijolos maciços esp. = 0,12m,  dim. int. =  0.70 x 0.70 x 0.80m","un",3,{"$f":"IF(B182=\"\",\"\",VLOOKUP(B182,'RELAÇÃO DE COMPOSIÇÕES'!$A$10:$F$374,6,FALSE))","v":452.82},452.82,1358.46]
["3.3.4","CPU_149","Caixa sifonada, pvc, dn 100 x 100 x 50 mm, junta elástica, fornecida e instalada em ramal de descarga ou em ramal de esgoto sanitário. af_12/2014","un",20,{"$f":"IF(B183=\"\",\"\",VLOOKUP(B183,'RELAÇÃO DE COMPOSIÇÕES'!$A$10:$F$374,6,FALSE))","v":23.77},23.77,475.4]
["3.3.5","CPU_150","Caixa sifonada quadrada, com sete entradas e uma saída, d = 150 x 150 x 50mm, ref. nº25, acabamento branco, marca Akros ou similar","un",7,{"$f":"IF(B184=\"\",\"\",VLOOKUP(B184,'RELAÇÃO DE COMPOSIÇÕES'!$A$10:$F$374,6,FALSE))","v":42.49},42.49,297.43]
["3.3.6","CPU_151","Curva curta 90 graus, pvc, serie normal, esgoto predial, dn 40 mm, junta soldável, fornecido e instalado em ramal de descarga ou ramal de esgoto sanitário. af_12/2014","un",16,{"$f":"IF(B185=\"\",\"\",VLOOKUP(B185,'RELAÇÃO DE COMPOSIÇÕES'!$A$10:$F$374,6,FALSE))","v":7.56},7.56,120.96]
["3.3.7","CPU_152","Curva curta 90 graus, pvc, serie normal, esgoto predial, dn 50 mm, junta elástica, fornecido e instalado em ramal de descarga ou ramal de esgoto sanitário. af_12/2014","un",3,{"$f":"IF(B186=\"\",\"\",VLOOKUP(B186,'RELAÇÃO DE COMPOSIÇÕES'!$A$10:$F$374,6,FALSE))","v":12.76},12.76,38.28]
["3.3.8","CPU_153","Joelho 45° em pvc rígido soldável, para esgoto predial, diâm = 100mm","un",23,{"$f":"IF(B187=\"\",\"\",VLOOKUP(B187,'RELAÇÃO DE COMPOSIÇÕES'!$A$10:$F$374,6,FALSE))","v":19.27},19.27,443.21]
["3.3.9","CPU_154","Joelho de 90° em pvc rígido soldável, para esgoto secundário, diâm = 40mm","un",2,{"$f":"IF(B188=\"\",\"\",VLOOKUP(B188,'RELAÇÃO DE COMPOSIÇÕES'!$A$10:$F$374,6,FALSE))","v":8.11},8.11,16.22]
["3.3.10","CPU_155","Joelho 45° em pvc rígido soldável, para esgoto predial, diâm = 50mm","un",24,{"$f":"IF(B189=\"\",\"\",VLOOKUP(B189,'RELAÇÃO DE COMPOSIÇÕES'!$A$10:$F$374,6,FALSE))","v":8.44},8.44,202.56]
["3.3.11","CPU_156","Joelho 90° em pvc rígido soldável, para esgoto predial, diâm = 100mm","un",15,{"$f":"IF(B190=\"\",\"\",VLOOKUP(B190,'RELAÇÃO DE COMPOSIÇÕES'!$A$10:$F$374,6,FALSE))","v":19.309999999999999},19.309999999999999,289.64999999999998]
["3.3.12","CPU_157","Joelho 90° em pvc rígido soldável, para esgoto predial, diâm = 50mm","un",42,{"$f":"IF(B191=\"\",\"\",VLOOKUP(B191,'RELAÇÃO DE COMPOSIÇÕES'!$A$10:$F$374,6,FALSE))","v":8.0399999999999991},8.0399999999999991,337.68]
["3.3.13","CPU_158","Joelho de 90° em pvc rígido c/ anéis, para esgoto secundário, diâm = 40mm","un",16,{"$f":"IF(B192=\"\",\"\",VLOOKUP(B192,'RELAÇÃO DE COMPOSIÇÕES'!$A$10:$F$374,6,FALSE))","v":8.9},8.9,142.4]
["3.3.14","CPU_159","Junção simples em pvc rígido soldável, para esgoto primário, diâm = 100 x 50mm","un",15,{"$f":"IF(B193=\"\",\"\",VLOOKUP(B193,'RELAÇÃO DE COMPOSIÇÕES'!$A$10:$F$374,6,FALSE))","v":32.94},32.94,494.1]
["3.3.15","CPU_160","Junção simples em pvc rígido soldável, para esgoto primário, diâm = 100 x 100mm","un",9,{"$f":"IF(B194=\"\",\"\",VLOOKUP(B194,'RELAÇÃO DE COMPOSIÇÕES'!$A$10:$F$374,6,FALSE))","v":38.74},38.74,348.66]
["3.3.16","CPU_161","Redução excentrica em pvc rígido soldável, para esgoto primário, diâm = 100 x 50mm","un",1,{"$f":"IF(B195=\"\",\"\",VLOOKUP(B195,'RELAÇÃO DE COMPOSIÇÕES'!$A$10:$F$374,6,FALSE))","v":18.21},18.21,18.21]
["3.3.17","CPU_162","Tubo pvc rígido soldável ponta e bolsa p/ esgoto predial, d = 100 mm","m",136.56,{"$f":"IF(B196=\"\",\"\",VLOOKUP(B196,'RELAÇÃO DE COMPOSIÇÕES'!$A$10:$F$374,6,FALSE))","v":29.68},29.68,4053.1]
["3.3.18","CPU_163","Tubo pvc rigido soldavel, serie reforçada, p/esgoto e aguas pluviais, d= 100mm","m",15,{"$f":"IF(B197=\"\",\"\",VLOOKUP(B197,'RELAÇÃO DE COMPOSIÇÕES'!$A$10:$F$374,6,FALSE))","v":41.6},41.6,624]
["3.3.19","CPU_164","Tubo pvc rígido c/anel borracha, serie reforçada, p/esgoto e aguas pluviais, d = 150mm","m",5,{"$f":"IF(B198=\"\",\"\",VLOOKUP(B198,'RELAÇÃO DE COMPOSIÇÕES'!$A$10:$F$374,6,FALSE))","v":69.89},69.89,349.45]
["3.3.20","CPU_165","Tubo pvc rígido soldável, serie reforçada, p/esgoto e aguas pluviais, d =  50 mm","m",173.06,{"$f":"IF(B199=\"\",\"\",VLOOKUP(B199,'RELAÇÃO DE COMPOSIÇÕES'!$A$10:$F$374,6,FALSE))","v":21},21,3634.26]
["3.3.21","CPU_166","Tubo pvc rígido soldável, serie reforçada, p/esgoto e aguas pluviais, d =  40 mm","m",17.190000000000001,{"$f":"IF(B200=\"\",\"\",VLOOKUP(B200,'RELAÇÃO DE COMPOSIÇÕES'!$A$10:$F$374,6,FALSE))","v":16.760000000000002},16.760000000000002,288.10000000000002]
["3.3.22","CPU_167","Tubo pvc rigido soldavel, série reforçada, p/esgoto e aguas pluviais, d=  75mm","m",28.12,{"$f":"IF(B201=\"\",\"\",VLOOKUP(B201,'RELAÇÃO DE COMPOSIÇÕES'!$A$10:$F$374,6,FALSE))","v":31.33},31.33,881]
["3.3.23","CPU_168","Joelho 45° em pvc rígido soldável, para esgoto predial, diâm = 50mm","un",1,{"$f":"IF(B202=\"\",\"\",VLOOKUP(B202,'RELAÇÃO DE COMPOSIÇÕES'!$A$10:$F$374,6,FALSE))","v":8.44},8.44,8.44]
["3.3.24","CPU_169","Joelho 90° em pvc rígido soldável, para esgoto predial, diâm = 50mm","un",18,{"$f":"IF(B203=\"\",\"\",VLOOKUP(B203,'RELAÇÃO DE COMPOSIÇÕES'!$A$10:$F$374,6,FALSE))","v":8.0399999999999991},8.0399999999999991,144.72]
["3.3.25","CPU_170","Terminal de ventilação em pvc rígido soldável, para esgoto primário, diâm = 50mm","un",5,{"$f":"IF(B204=\"\",\"\",VLOOKUP(B204,'RELAÇÃO DE COMPOSIÇÕES'!$A$10:$F$374,6,FALSE))","v":8.24},8.24,41.2]
["3.3.26","CPU_171","Tubo pvc rígido soldável ponta e bolsa p/ esgoto predial, d =  50 mm","m",39.97,{"$f":"IF(B205=\"\",\"\",VLOOKUP(B205,'RELAÇÃO DE COMPOSIÇÕES'!$A$10:$F$374,6,FALSE))","v":16.53},16.53,660.7]
["3.3.27","CPU_172","Tê sanitário em pvc rígido soldável, para esgoto primário, diâm = 50 x 50mm","un",8,{"$f":"IF(B206=\"\",\"\",VLOOKUP(B206,'RELAÇÃO DE COMPOSIÇÕES'!$A$10:$F$374,6,FALSE))","v":16.850000000000001},16.850000000000001,134.80000000000001]
["3.3.28",null,"FOSSA SEPTICA"]
["3.3.28.1","CPU_173","Escavação manual de vala ou cava em material de 1ª categoria, profundidade entre 1,50 e 3,00m","m3",24.91,{"$f":"IF(B208=\"\",\"\",VLOOKUP(B208,'RELAÇÃO DE COMPOSIÇÕES'!$A$10:$F$374,6,FALSE))","v":63.17},63.17,1573.56]
["3.3.28.2","CPU_174","Carga manual de material de 1ª categoria","m3",24.91,{"$f":"IF(B209=\"\",\"\",VLOOKUP(B209,'RELAÇÃO DE COMPOSIÇÕES'!$A$10:$F$374,6,FALSE))","v":8.39},8.39,208.99]
["3.3.28.3","CPU_175","Concreto magro para lastro, traço 1:4,5:4,5 (cimento/ areia média/ brita 1)  - preparo mecânico com betoneira 600 l. af_07/2016","m3",0.42,{"$f":"IF(B210=\"\",\"\",VLOOKUP(B210,'RELAÇÃO DE COMPOSIÇÕES'!$A$10:$F$374,6,FALSE))","v":296.33999999999997},296.33999999999997,124.46]
["3.3.28.4","CPU_176","Concreto Armado fck=30,0MPa, usinado, bombeado, adensado e lançado, para uso Geral, com formas planas em compensado resinado 12mm (05 usos)","m3",2.33,{"$f":"IF(B211=\"\",\"\",VLOOKUP(B211,'RELAÇÃO DE COMPOSIÇÕES'!$A$10:$F$374,6,FALSE))","v":1664.16},1664.16,3877.49]
["3.3.28.5","CPU_177","Alvenaria em tijolo ceramico macico 5x10x20cm 1 vez (espessura 20cm), assentado com argamassa traco 1:2:8 (cimento, cal e areia)","m2",27.75,{"$f":"IF(B212=\"\",\"\",VLOOKUP(B212,'RELAÇÃO DE COMPOSIÇÕES'!$A$10:$F$374,6,FALSE))","v":100.46},100.46,2787.77]
["3.3.28.6","CPU_178","Reboco especial de parede 2cm com argamassa traço t1 - 1:3 (cimento / areia)","m2",27.75,{"$f":"IF(B213=\"\",\"\",VLOOKUP(B213,'RELAÇÃO DE COMPOSIÇÕES'!$A$10:$F$374,6,FALSE))","v":27.13},27.13,752.86]
["3.3.28.7","CPU_179","Impermeabilização semi-flexível com Sika Top 107 bi-componente, cor cinza, 03 demãos cruzadas aplicado à trincha para aplicação em paredes enterradas, subsolos, caixas d'agua, áreas frias e em contato com esgoto","m2",27.75,{"$f":"IF(B214=\"\",\"\",VLOOKUP(B214,'RELAÇÃO DE COMPOSIÇÕES'!$A$10:$F$374,6,FALSE))","v":38.51},38.51,1068.6500000000001]
["3.3.28.8","CPU_180","Concreto Armado fck=21,0MPa, usinado, bombeado, adensado e lançado, para Uso Geral, com formas planas em compensado resinado 12mm (05 usos) (VIGAS)","m3",0.13,{"$f":"IF(B215=\"\",\"\",VLOOKUP(B215,'RELAÇÃO DE COMPOSIÇÕES'!$A$10:$F$374,6,FALSE))","v":1647.33},1647.33,214.15]
["3.3.29",null,"FILTRO",null,null,{"$f":"IF(B216=\"\",\"\",VLOOKUP(B216,'RELAÇÃO DE COMPOSIÇÕES'!$A$10:$F$374,6,FALSE))","v":""},"",""]
["3.3.29.1","CPU_181","Escavação manual de vala ou cava em material de 1ª categoria, profundidade entre 1,50 e 3,00m","m3",26.11,{"$f":"IF(B217=\"\",\"\",VLOOKUP(B217,'RELAÇÃO DE COMPOSIÇÕES'!$A$10:$F$374,6,FALSE))","v":63.17},63.17,1649.37]
["3.3.29.2","CPU_182","Carga manual de material de 1ª categoria","m3",26.11,{"$f":"IF(B218=\"\",\"\",VLOOKUP(B218,'RELAÇÃO DE COMPOSIÇÕES'!$A$10:$F$374,6,FALSE))","v":8.39},8.39,219.06]
["3.3.29.3","CPU_183","Concreto magro para lastro, traço 1:4,5:4,5 (cimento/ areia média/ brita 1)  - preparo mecânico com betoneira 600 l. af_07/2016","m3",0.45,{"$f":"IF(B219=\"\",\"\",VLOOKUP(B219,'RELAÇÃO DE COMPOSIÇÕES'!$A$10:$F$374,6,FALSE))","v":296.33999999999997},296.33999999999997,133.35]
["3.3.29.4","CPU_184","Concreto Armado fck=30,0MPa, usinado, bombeado, adensado e lançado, para uso Geral, com formas planas em compensado resinado 12mm (05 usos)","m3",2.2400000000000002,{"$f":"IF(B220=\"\",\"\",VLOOKUP(B220,'RELAÇÃO DE COMPOSIÇÕES'!$A$10:$F$374,6,FALSE))","v":1664.16},1664.16,3727.72]
["3.3.29.5","CPU_185","Alvenaria em tijolo ceramico macico 5x10x20cm 1 vez (espessura 20cm), assentado com argamassa traco 1:2:8 (cimento, cal e areia)","m2",26.43,{"$f":"IF(B221=\"\",\"\",VLOOKUP(B221,'RELAÇÃO DE COMPOSIÇÕES'!$A$10:$F$374,6,FALSE))","v":100.46},{"$f":"IF(B221=\"\",\"\",ROUND(F221*(1+$H$6),2))","v":100.46},{"$f":"IF(B221=\"\",\"\",ROUND(E221*G221,2))","v":2655.16}]
["3.3.29.6","CPU_186","Caixa de passagem em alvenaria de tijolos maciços esp. = 0,12m,  dim. int. =  0.60 x 0.60 x 1,00m","un",1,{"$f":"IF(B222=\"\",\"\",VLOOKUP(B222,'RELAÇÃO DE COMPOSIÇÕES'!$A$10:$F$374,6,FALSE))","v":454.82},454.82,454.82]
["3.3.29.7","CPU_187","Reboco especial de parede 2cm com argamassa traço t1 - 1:3 (cimento / areia)","m2",26.43,{"$f":"IF(B223=\"\",\"\",VLOOKUP(B223,'RELAÇÃO DE COMPOSIÇÕES'!$A$10:$F$374,6,FALSE))","v":27.13},27.13,717.05]
["3.3.29.8","CPU_188","Impermeabilização semi-flexível com Sika Top 107 bi-componente, cor cinza, 03 demãos cruzadas aplicado à trincha para aplicação em paredes enterradas, subsolos, caixas d'agua, áreas frias e em contato com esgoto","m2",26.43,{"$f":"IF(B224=\"\",\"\",VLOOKUP(B224,'RELAÇÃO DE COMPOSIÇÕES'!$A$10:$F$374,6,FALSE))","v":38.51},38.51,1017.82]
["3.3.29.9","CPU_189","Concreto simples fck= 15 MPA (b1/b2), fabricado na obra, sem lançamento e adensamento (PARA BASE DE APOIO PARA FUNDO FALSO)","m3",0.23,{"$f":"IF(B225=\"\",\"\",VLOOKUP(B225,'RELAÇÃO DE COMPOSIÇÕES'!$A$10:$F$374,6,FALSE))","v":380.77},380.77,87.58]
["3.3.29.10","CPU_190","Concreto Armado fck=30,0MPa, usinado, bombeado, adensado e lançado, para uso Geral, com formas planas em compensado resinado 12mm (05 usos) (PARA FUNDO FALSO COM FUROS)","m3",1.01,{"$f":"IF(B226=\"\",\"\",VLOOKUP(B226,'RELAÇÃO DE COMPOSIÇÕES'!$A$10:$F$374,6,FALSE))","v":1664.16},1664.16,1680.8]
["3.3.29.11","CPU_191","Lastro de brita 4","m3",3.38,{"$f":"IF(B227=\"\",\"\",VLOOKUP(B227,'RELAÇÃO DE COMPOSIÇÕES'!$A$10:$F$374,6,FALSE))","v":126.87},126.87,428.82]
["3.3.30",null,"TANQUE SELADO"]
["3.3.30.1","CPU_192","Escavação manual de vala ou cava em material de 1ª categoria, profundidade entre 1,50 e 3,00m","m3",26.32,{"$f":"IF(B229=\"\",\"\",VLOOKUP(B229,'RELAÇÃO DE COMPOSIÇÕES'!$A$10:$F$374,6,FALSE))","v":63.17},63.17,1662.63]
["3.3.30.2","CPU_193","Carga manual de material de 1ª categoria","m3",26.32,{"$f":"IF(B230=\"\",\"\",VLOOKUP(B230,'RELAÇÃO DE COMPOSIÇÕES'!$A$10:$F$374,6,FALSE))","v":8.39},8.39,220.82]
["3.3.30.3","CPU_194","Concreto magro para lastro, traço 1:4,5:4,5 (cimento/ areia média/ brita 1)  - preparo mecânico com betoneira 600 l. af_07/2016","m3",0.42,{"$f":"IF(B231=\"\",\"\",VLOOKUP(B231,'RELAÇÃO DE COMPOSIÇÕES'!$A$10:$F$374,6,FALSE))","v":296.33999999999997},296.33999999999997,124.46]
["3.3.30.4","CPU_195","Concreto Armado fck=30,0MPa, usinado, bombeado, adensado e lançado, para uso Geral, com formas planas em compensado resinado 12mm (05 usos)","m3",2.3199999999999998,{"$f":"IF(B232=\"\",\"\",VLOOKUP(B232,'RELAÇÃO DE COMPOSIÇÕES'!$A$10:$F$374,6,FALSE))","v":1664.16},1664.16,3860.85]
["3.3.30.5","CPU_196","Alvenaria em tijolo ceramico macico 5x10x20cm 1 vez (espessura 20cm), assentado com argamassa traco 1:2:8 (cimento, cal e areia)","m2",29.42,{"$f":"IF(B233=\"\",\"\",VLOOKUP(B233,'RELAÇÃO DE COMPOSIÇÕES'!$A$10:$F$374,6,FALSE))","v":100.46},100.46,2955.53]
["3.3.30.6","CPU_197","Caixa de passagem em alvenaria de tijolos maciços esp. = 0,12m,  dim. int. =  0.60 x 0.60 x 1,00m","un",1,{"$f":"IF(B234=\"\",\"\",VLOOKUP(B234,'RELAÇÃO DE COMPOSIÇÕES'!$A$10:$F$374,6,FALSE))","v":454.82},454.82,454.82]
["3.3.30.7","CPU_198","Reboco especial de parede 2cm com argamassa traço t1 - 1:3 (cimento / areia)","m2",29.42,{"$f":"IF(B235=\"\",\"\",VLOOKUP(B235,'RELAÇÃO DE COMPOSIÇÕES'!$A$10:$F$374,6,FALSE))","v":27.13},27.13,798.16]
["3.3.30.8","CPU_199","Impermeabilização semi-flexível com Sika Top 107 bi-componente, cor cinza, 03 demãos cruzadas aplicado à trincha para aplicação em paredes enterradas, subsolos, caixas d'agua, áreas frias e em contato com esgoto","m2",29.42,{"$f":"IF(B236=\"\",\"\",VLOOKUP(B236,'RELAÇÃO DE COMPOSIÇÕES'!$A$10:$F$374,6,FALSE))","v":38.51},38.51,1132.96]
["3.3.30.9","CPU_200","Laje pré-fabricada treliçada para piso ou cobertura, intereixo 38cm, h=12cm, el. enchimento em bloco cerâmico h=8cm, inclusive escoramento em madeira e capeamento 4cm.","M2",8.84,{"$f":"IF(B237=\"\",\"\",VLOOKUP(B237,'RELAÇÃO DE COMPOSIÇÕES'!$A$10:$F$374,6,FALSE))","v":142.44999999999999},142.44999999999999,1259.26]
["3.4",null,"INSTALAÇÕES ELÉTRICAS"]
["3.4.1","CPU_201","Bucha com arruela em liga especial zamak p/eletroduto 85mm, d=3\"","un",3,{"$f":"IF(B239=\"\",\"\",VLOOKUP(B239,'RELAÇÃO DE COMPOSIÇÕES'!$A$10:$F$374,6,FALSE))","v":7.9},7.9,23.7]
["3.4.2","CPU_202","Bucha com arruela em liga especial zamak p/eletroduto 75mm, d=2 1/2\"","un",2,{"$f":"IF(B240=\"\",\"\",VLOOKUP(B240,'RELAÇÃO DE COMPOSIÇÕES'!$A$10:$F$374,6,FALSE))","v":8.61},8.61,17.22]
["3.4.3","CPU_203","Bucha com arruela em liga especial zamak p/eletroduto 50mm, d=2\"","un",1,{"$f":"IF(B241=\"\",\"\",VLOOKUP(B241,'RELAÇÃO DE COMPOSIÇÕES'!$A$10:$F$374,6,FALSE))","v":7.39},7.39,7.39]
["3.4.4","CPU_204","Bucha com arruela em liga especial zamak p/eletroduto 20mm, d=3/4\"","un",33,{"$f":"IF(B242=\"\",\"\",VLOOKUP(B242,'RELAÇÃO DE COMPOSIÇÕES'!$A$10:$F$374,6,FALSE))","v":0.88},0.88,29.04]
["3.4.5","CPU_205","Caixa de passagem pvc, 4\" x 2\", embutir, p/eletroduto - Rev 01","un",309,{"$f":"IF(B243=\"\",\"\",VLOOKUP(B243,'RELAÇÃO DE COMPOSIÇÕES'!$A$10:$F$374,6,FALSE))","v":11.19},11.19,3457.71]
["3.4.6","CPU_206","Caixa de passagem pvc, 4\" x 4\" cm, embutir, p/eletroduto","un",1,{"$f":"IF(B244=\"\",\"\",VLOOKUP(B244,'RELAÇÃO DE COMPOSIÇÕES'!$A$10:$F$374,6,FALSE))","v":12.75},12.75,12.75]
["3.4.7","CPU_207","Condulete tipo \"C\" de 1 1/4\" em alumínio fundido a prova de tempo, gases, vapores e pós.","un",6,{"$f":"IF(B245=\"\",\"\",VLOOKUP(B245,'RELAÇÃO DE COMPOSIÇÕES'!$A$10:$F$374,6,FALSE))","v":23.92},23.92,143.52000000000001]
["3.4.8","CPU_208","Condulete em alumínio tipo \"C\" de 1\"","un",30,{"$f":"IF(B246=\"\",\"\",VLOOKUP(B246,'RELAÇÃO DE COMPOSIÇÕES'!$A$10:$F$374,6,FALSE))","v":23.54},23.54,706.2]
["3.4.9","CPU_209","Caixa octogonal 3\" x 3\", pvc, instalada em laje - fornecimento e instalação. af_12/2015","un",120,{"$f":"IF(B247=\"\",\"\",VLOOKUP(B247,'RELAÇÃO DE COMPOSIÇÕES'!$A$10:$F$374,6,FALSE))","v":8.08},8.08,969.6]
["3.4.10","CPU_210","Curva 90 graus para eletroduto, pvc, roscável, dn 60 mm (2\") - fornecimento e instalação. af_12/2015","un",2,{"$f":"IF(B248=\"\",\"\",VLOOKUP(B248,'RELAÇÃO DE COMPOSIÇÕES'!$A$10:$F$374,6,FALSE))","v":20.420000000000002},20.420000000000002,40.840000000000003]
["3.4.11","CPU_211","Curva 90 graus para eletroduto, pvc, roscável, dn 50 mm (1 1/2\") - fornecimento e instalação. af_12/2015","un",2,{"$f":"IF(B249=\"\",\"\",VLOOKUP(B249,'RELAÇÃO DE COMPOSIÇÕES'!$A$10:$F$374,6,FALSE))","v":16.170000000000002},16.170000000000002,32.340000000000003]
["3.4.12","CPU_212","Curva 90 graus para eletroduto, pvc, roscável, dn 40 mm (1 1/4\"), para circuitos terminais, instalada em parede - fornecimento e instalação. af_12/2015","un",2,{"$f":"IF(B250=\"\",\"\",VLOOKUP(B250,'RELAÇÃO DE COMPOSIÇÕES'!$A$10:$F$374,6,FALSE))","v":14.61},14.61,29.22]
["3.4.13","CPU_213","Curva 90 graus para eletroduto, pvc, roscável, dn 32 mm (1\"), para circuitos terminais, instalada em parede - fornecimento e instalação. af_12/2015","un",8,{"$f":"IF(B251=\"\",\"\",VLOOKUP(B251,'RELAÇÃO DE COMPOSIÇÕES'!$A$10:$F$374,6,FALSE))","v":12.83},12.83,102.64]
["3.4.14","CPU_214","Curva 90 graus para eletroduto, pvc, roscável, dn 25 mm (3/4\"), para circuitos terminais, instalada em parede - fornecimento e instalação. af_12/2015","un",40,{"$f":"IF(B252=\"\",\"\",VLOOKUP(B252,'RELAÇÃO DE COMPOSIÇÕES'!$A$10:$F$374,6,FALSE))","v":10.64},10.64,425.6]
["3.4.15","CPU_215","Fornecimento e assentamento de curva 90 de ferro galvanizado de 2 1/2\"","un",3,{"$f":"IF(B253=\"\",\"\",VLOOKUP(B253,'RELAÇÃO DE COMPOSIÇÕES'!$A$10:$F$374,6,FALSE))","v":148.59},148.59,445.77]
["3.4.16","CPU_216","Fornecimento e assentamento de curva 90 de ferro galvanizado de     3\"","un",8,{"$f":"IF(B254=\"\",\"\",VLOOKUP(B254,'RELAÇÃO DE COMPOSIÇÕES'!$A$10:$F$374,6,FALSE))","v":207.89},207.89,1663.12]
["3.4.17","CPU_217","Luva para eletroduto de pvc rígido roscável, diâm = 60mm (2\")","un",10,{"$f":"IF(B255=\"\",\"\",VLOOKUP(B255,'RELAÇÃO DE COMPOSIÇÕES'!$A$10:$F$374,6,FALSE))","v":6.6},6.6,66]
["3.4.18","CPU_218","Luva para eletroduto de pvc rígido roscável, diâm = 32mm (1\")","un",50,{"$f":"IF(B256=\"\",\"\",VLOOKUP(B256,'RELAÇÃO DE COMPOSIÇÕES'!$A$10:$F$374,6,FALSE))","v":2.68},2.68,134]
["3.4.19","CPU_219","Luva para eletroduto de pvc rígido roscável, diâm = 50mm (1 1/2\")","un",4,{"$f":"IF(B257=\"\",\"\",VLOOKUP(B257,'RELAÇÃO DE COMPOSIÇÕES'!$A$10:$F$374,6,FALSE))","v":5.2},5.2,20.8]
["3.4.20","CPU_220","Luva para eletroduto de pvc rígido roscável, diâm = 40mm (1 1/4\")","un",5,{"$f":"IF(B258=\"\",\"\",VLOOKUP(B258,'RELAÇÃO DE COMPOSIÇÕES'!$A$10:$F$374,6,FALSE))","v":3.92},3.92,19.600000000000001]
["3.4.21","CPU_221","Luva para eletroduto de pvc rígido roscável, diâm = 25mm (3/4\")","un",290,{"$f":"IF(B259=\"\",\"\",VLOOKUP(B259,'RELAÇÃO DE COMPOSIÇÕES'!$A$10:$F$374,6,FALSE))","v":1.72},1.72,498.8]
["3.4.22","CPU_222","Luva de emenda para eletroduto, aço galvanizado, dn 25 mm (1''), aparente, instalada em parede - fornecimento e instalação. af_11/2016_p","un",61,{"$f":"IF(B260=\"\",\"\",VLOOKUP(B260,'RELAÇÃO DE COMPOSIÇÕES'!$A$10:$F$374,6,FALSE))","v":9.6300000000000008},9.6300000000000008,587.42999999999995]
["3.4.23","CPU_223","Luva de emenda para eletroduto, aço galvanizado, dn 32 mm (1 1/4''), aparente, instalada em parede - fornecimento e instalação. af_11/2016_p","un",12,{"$f":"IF(B261=\"\",\"\",VLOOKUP(B261,'RELAÇÃO DE COMPOSIÇÕES'!$A$10:$F$374,6,FALSE))","v":12.34},12.34,148.08000000000001]
["3.4.24","CPU_224","Fornecimento e assentamento de luva de ferro galvanizado de 2 1/2\"","un",6,{"$f":"IF(B262=\"\",\"\",VLOOKUP(B262,'RELAÇÃO DE COMPOSIÇÕES'!$A$10:$F$374,6,FALSE))","v":54.43},54.43,326.58]
["3.4.25","CPU_225","Fornecimento e assentamento de luva de ferro galvanizado de     3\"","un",14,{"$f":"IF(B263=\"\",\"\",VLOOKUP(B263,'RELAÇÃO DE COMPOSIÇÕES'!$A$10:$F$374,6,FALSE))","v":76.47},76.47,1070.58]
["3.4.26","CPU_226","Arruela lisa de aço galvanizada de Ø 1/4\"","un",1290,{"$f":"IF(B264=\"\",\"\",VLOOKUP(B264,'RELAÇÃO DE COMPOSIÇÕES'!$A$10:$F$374,6,FALSE))","v":0.1},0.1,129]
["3.4.27","CPU_227","Arruela de lisa 3/8\"","un",162,{"$f":"IF(B265=\"\",\"\",VLOOKUP(B265,'RELAÇÃO DE COMPOSIÇÕES'!$A$10:$F$374,6,FALSE))","v":0.41},0.41,66.42]
["3.4.28","CPU_228","Bucha de nylon s-06","un",501,{"$f":"IF(B266=\"\",\"\",VLOOKUP(B266,'RELAÇÃO DE COMPOSIÇÕES'!$A$10:$F$374,6,FALSE))","v":0.05},0.05,25.05]
["3.4.29","CPU_229","Bucha de nylon sem aba s4","un",1290,{"$f":"IF(B267=\"\",\"\",VLOOKUP(B267,'RELAÇÃO DE COMPOSIÇÕES'!$A$10:$F$374,6,FALSE))","v":0.03},0.03,38.700000000000003]
["3.4.30","CPU_230","Fita isolante (rolo 20m) 3/4\" - Fornecimento","Un",30,{"$f":"IF(B268=\"\",\"\",VLOOKUP(B268,'RELAÇÃO DE COMPOSIÇÕES'!$A$10:$F$374,6,FALSE))","v":7.41},7.41,222.3]
["3.4.31","CPU_231","Parafuso de ferro zincado c/rosca 3/8 \" x 1 1/2\"","un",145,{"$f":"IF(B269=\"\",\"\",VLOOKUP(B269,'RELAÇÃO DE COMPOSIÇÕES'!$A$10:$F$374,6,FALSE))","v":0.6},0.6,87]
["3.4.32","CPU_232","Parafuso galvaniz. cabeça panela 2,9x25mm autoatarrachante","und",1012,{"$f":"IF(B270=\"\",\"\",VLOOKUP(B270,'RELAÇÃO DE COMPOSIÇÕES'!$A$10:$F$374,6,FALSE))","v":0.34},0.34,344.08]
["3.4.33","CPU_233","Parafuso fenda cabeça panela 4,2 x 32mm, auto-atarrachante","un",497,{"$f":"IF(B271=\"\",\"\",VLOOKUP(B271,'RELAÇÃO DE COMPOSIÇÕES'!$A$10:$F$374,6,FALSE))","v":0.38},0.38,188.86]
["3.4.34","CPU_234","Parafuso galvaniz. cabeça panela 4,8x45mm autoatarrachante","und",4,{"$f":"IF(B272=\"\",\"\",VLOOKUP(B272,'RELAÇÃO DE COMPOSIÇÕES'!$A$10:$F$374,6,FALSE))","v":0.42},0.42,1.68]
["3.4.35","CPU_235","Parafuso galvaniz. cabeça panela 6,3x50mm autoatarrachante","und",2,{"$f":"IF(B273=\"\",\"\",VLOOKUP(B273,'RELAÇÃO DE COMPOSIÇÕES'!$A$10:$F$374,6,FALSE))","v":0.46},0.46,0.92]
["3.4.36","CPU_236","Parafuso zincado, sextavado, com rosca inteira, diametro 3/8\", comprimento 2\"","un",18,{"$f":"IF(B274=\"\",\"\",VLOOKUP(B274,'RELAÇÃO DE COMPOSIÇÕES'!$A$10:$F$374,6,FALSE))","v":0.8},0.8,14.4]
["3.4.37","CPU_237","Parafuso cabeça lentilha 1/4\" x 5/8\", rosca total","un",976,{"$f":"IF(B275=\"\",\"\",VLOOKUP(B275,'RELAÇÃO DE COMPOSIÇÕES'!$A$10:$F$374,6,FALSE))","v":0.42},0.42,409.92]
["3.4.38","CPU_238","Porca sextavada 1/4\"","un",927,{"$f":"IF(B276=\"\",\"\",VLOOKUP(B276,'RELAÇÃO DE COMPOSIÇÕES'!$A$10:$F$374,6,FALSE))","v":0.22},0.22,203.94]
["3.4.39","CPU_239","Porca sextavada 3/8 \"","un",162,{"$f":"IF(B277=\"\",\"\",VLOOKUP(B277,'RELAÇÃO DE COMPOSIÇÕES'!$A$10:$F$374,6,FALSE))","v":0.15},0.15,24.3]
["3.4.40","CPU_240","Suporte em ferro galv. para descida do cabo tipo reforçado com chapa de encosto em 90°","un",18,{"$f":"IF(B278=\"\",\"\",VLOOKUP(B278,'RELAÇÃO DE COMPOSIÇÕES'!$A$10:$F$374,6,FALSE))","v":39.119999999999997},39.119999999999997,704.16]
["3.4.41","CPU_241","Vergalhão galvanizado tipo rosca total de 1/4\" x 3m","m",18,{"$f":"IF(B279=\"\",\"\",VLOOKUP(B279,'RELAÇÃO DE COMPOSIÇÕES'!$A$10:$F$374,6,FALSE))","v":2.78},2.78,50.04]
["3.4.42","CPU_242","Vergalhão (Tirante) com rosca total ø 1/4\"x1000mm (marvitec ref. 1431 ou similar)","un",162,{"$f":"IF(B280=\"\",\"\",VLOOKUP(B280,'RELAÇÃO DE COMPOSIÇÕES'!$A$10:$F$374,6,FALSE))","v":10.76},10.76,1743.12]
["3.4.43","CPU_243","Caixa de equipotencialização em aço 200x200x90mm, para embutir com tampa, com 9 terminais, ref:TEL-901 ou similar (SPDA)","un",1,{"$f":"IF(B281=\"\",\"\",VLOOKUP(B281,'RELAÇÃO DE COMPOSIÇÕES'!$A$10:$F$374,6,FALSE))","v":418.86},418.86,418.86]
["3.4.44","CPU_244","Cabo de cobre isolado HEPR (XLPE),  10mm²,  1kv / 90º C","m",20.7,{"$f":"IF(B282=\"\",\"\",VLOOKUP(B282,'RELAÇÃO DE COMPOSIÇÕES'!$A$10:$F$374,6,FALSE))","v":10.68},10.68,221.08]
["3.4.45","CPU_245","Cabo de cobre isolado HEPR (XLPE),  16mm²,  1kv / 90º C","m",200.7,{"$f":"IF(B283=\"\",\"\",VLOOKUP(B283,'RELAÇÃO DE COMPOSIÇÕES'!$A$10:$F$374,6,FALSE))","v":16.489999999999998},16.489999999999998,3309.54]
["3.4.46","CPU_246","Cabo de cobre isolado HEPR (XLPE),  25mm²,  1kv / 90º C","m",200.5,{"$f":"IF(B284=\"\",\"\",VLOOKUP(B284,'RELAÇÃO DE COMPOSIÇÕES'!$A$10:$F$374,6,FALSE))","v":27.93},27.93,5599.97]
["3.4.47","CPU_247","Cabo de cobre isolado HEPR (XLPE),  35mm²,  1kv / 90º C","m",20.2,{"$f":"IF(B285=\"\",\"\",VLOOKUP(B285,'RELAÇÃO DE COMPOSIÇÕES'!$A$10:$F$374,6,FALSE))","v":35.61},{"$f":"IF(B285=\"\",\"\",ROUND(F285*(1+$H$6),2))","v":35.61},{"$f":"IF(B285=\"\",\"\",ROUND(E285*G285,2))","v":719.32}]
["3.4.48","CPU_248","Cabo de cobre isolado HEPR (XLPE),   4,0mm²,  1kv / 90º C","m",3158.6,{"$f":"IF(B286=\"\",\"\",VLOOKUP(B286,'RELAÇÃO DE COMPOSIÇÕES'!$A$10:$F$374,6,FALSE))","v":3.77},3.77,11907.92]
["3.4.49","CPU_249","Cabo de cobre isolado HEPR (XLPE),  70mm²,  1kv / 90º C","m",30.9,{"$f":"IF(B287=\"\",\"\",VLOOKUP(B287,'RELAÇÃO DE COMPOSIÇÕES'!$A$10:$F$374,6,FALSE))","v":69.97},69.97,2162.0700000000002]
["3.4.50","CPU_250","Cabo de cobre isolado HEPR (XLPE),   6,0mm²,  1kv / 90º C","m",240,{"$f":"IF(B288=\"\",\"\",VLOOKUP(B288,'RELAÇÃO DE COMPOSIÇÕES'!$A$10:$F$374,6,FALSE))","v":3.49},3.49,837.6]
["3.4.51","CPU_251","Cabo cobre flexível, isolado,  1,5mm2 - 450/750V / 70º","m",1684.7,{"$f":"IF(B289=\"\",\"\",VLOOKUP(B289,'RELAÇÃO DE COMPOSIÇÕES'!$A$10:$F$374,6,FALSE))","v":0.75},0.75,1263.53]
["3.4.52","CPU_252","Cabo cobre flexível, isolado,  2,5mm2 - 450/750V / 70º","m",4007.4,{"$f":"IF(B290=\"\",\"\",VLOOKUP(B290,'RELAÇÃO DE COMPOSIÇÕES'!$A$10:$F$374,6,FALSE))","v":1.19},1.19,4768.8100000000004]
["3.4.53","CPU_253","Cabo cobre flexível, isolado,  4,0mm2 - 450/750V / 70º","m",1645,{"$f":"IF(B291=\"\",\"\",VLOOKUP(B291,'RELAÇÃO DE COMPOSIÇÕES'!$A$10:$F$374,6,FALSE))","v":2.14},2.14,3520.3]
["3.4.54","CPU_254","Caixa de passagem em alvenaria de tijolos maciços esp. = 0,12m,  dim. int. =  0,30 x 0,30 x 0,40m","un",21,{"$f":"IF(B292=\"\",\"\",VLOOKUP(B292,'RELAÇÃO DE COMPOSIÇÕES'!$A$10:$F$374,6,FALSE))","v":115.27},115.27,2420.67]
["3.4.55","CPU_255","Caixa de passagem em alvenaria de tijolos maciços esp. = 0,12m,  dim. int. =  0,30 x 0,30 x 0,30m","un",2,{"$f":"IF(B293=\"\",\"\",VLOOKUP(B293,'RELAÇÃO DE COMPOSIÇÕES'!$A$10:$F$374,6,FALSE))","v":98.53},98.53,197.06]
["3.4.56","CPU_256","Caixa de passagem em alvenaria de tijolos maciços esp. = 0,12m,  dim. int. =  0.50 x 0.50 x 0.50m","un",2,{"$f":"IF(B294=\"\",\"\",VLOOKUP(B294,'RELAÇÃO DE COMPOSIÇÕES'!$A$10:$F$374,6,FALSE))","v":236.47},236.47,472.94]
["3.4.57","CPU_257","Caixa de passagem pvc 20 x 20cm, sistema \"x\", com tampa","un",3,{"$f":"IF(B295=\"\",\"\",VLOOKUP(B295,'RELAÇÃO DE COMPOSIÇÕES'!$A$10:$F$374,6,FALSE))","v":39.81},39.81,119.43]
["3.4.58","CPU_258","Interruptor simples (6 módulos), 10a/250v, incluindo suporte e placa - fornecimento e instalação. af_12/2015","un",1,{"$f":"IF(B296=\"\",\"\",VLOOKUP(B296,'RELAÇÃO DE COMPOSIÇÕES'!$A$10:$F$374,6,FALSE))","v":85.73},85.73,85.73]
["3.4.59","CPU_259","Interruptor paralelo (1 módulo) com 1 tomada de embutir 2p+t 10 a,  incluindo suporte e placa - fornecimento e instalação. af_12/2015","un",2,{"$f":"IF(B297=\"\",\"\",VLOOKUP(B297,'RELAÇÃO DE COMPOSIÇÕES'!$A$10:$F$374,6,FALSE))","v":41.68},41.68,83.36]
["3.4.60","CPU_260","Interruptor simples (1 módulo) com 1 tomada de embutir 2p+t 10 a,  incluindo suporte e placa - fornecimento e instalação. af_12/2015","un",52,{"$f":"IF(B298=\"\",\"\",VLOOKUP(B298,'RELAÇÃO DE COMPOSIÇÕES'!$A$10:$F$374,6,FALSE))","v":36.79},36.79,1913.08]
["3.4.61","CPU_261","Interruptor simples (2 módulos) com 1 tomada de embutir 2p+t 10 a,  incluindo suporte e placa - fornecimento e instalação. af_12/2015","un",1,{"$f":"IF(B299=\"\",\"\",VLOOKUP(B299,'RELAÇÃO DE COMPOSIÇÕES'!$A$10:$F$374,6,FALSE))","v":48.93},48.93,48.93]
["3.4.62","CPU_262","Tomada 2p + t, ABNT, de embutir, 10 A, com placa em pvc","un",160,{"$f":"IF(B300=\"\",\"\",VLOOKUP(B300,'RELAÇÃO DE COMPOSIÇÕES'!$A$10:$F$374,6,FALSE))","v":7.11},7.11,1137.5999999999999]
["3.4.63","CPU_263","Tomada 2p + t, ABNT, de embutir, 20 A, com placa em pvc","un",32,{"$f":"IF(B301=\"\",\"\",VLOOKUP(B301,'RELAÇÃO DE COMPOSIÇÕES'!$A$10:$F$374,6,FALSE))","v":12.12},12.12,387.84]
["3.4.64","CPU_264","Tomada dupla, de embutir, para uso geral, 2p+t, ABNT, 10A","un",16,{"$f":"IF(B302=\"\",\"\",VLOOKUP(B302,'RELAÇÃO DE COMPOSIÇÕES'!$A$10:$F$374,6,FALSE))","v":8.4},8.4,134.4]
["3.4.65","CPU_265","Relé fotoelétrico 1000 w - 220 v","un",14,{"$f":"IF(B303=\"\",\"\",VLOOKUP(B303,'RELAÇÃO DE COMPOSIÇÕES'!$A$10:$F$374,6,FALSE))","v":18.5},18.5,259]
["3.4.66","CPU_266","Disjuntor termomagnetico monopolar 10 A, padrão DIN (linha branca) curva de disparo B, corrente de interrupção 5KA, ref.: Siemens 5 SX1 ou similar.","un",33,{"$f":"IF(B304=\"\",\"\",VLOOKUP(B304,'RELAÇÃO DE COMPOSIÇÕES'!$A$10:$F$374,6,FALSE))","v":16.09},16.09,530.97]
["3.4.67","CPU_267","Disjuntor termomagnetico monopolar 20 A, padrão DIN (Europeu - linha branca), curva B, corrente 5KA","un",40,{"$f":"IF(B305=\"\",\"\",VLOOKUP(B305,'RELAÇÃO DE COMPOSIÇÕES'!$A$10:$F$374,6,FALSE))","v":16.09},16.09,643.6]
["3.4.68","CPU_268","Disjuntor termomagnetico monopolar 32 A, padrão DIN (Europeu - linha branca)","un",64,{"$f":"IF(B306=\"\",\"\",VLOOKUP(B306,'RELAÇÃO DE COMPOSIÇÕES'!$A$10:$F$374,6,FALSE))","v":13.76},13.76,880.64]
["3.4.69","CPU_269","Disjuntor termomagnetico bipolar 10 A, padrão DIN (linha branca)","un",8,{"$f":"IF(B307=\"\",\"\",VLOOKUP(B307,'RELAÇÃO DE COMPOSIÇÕES'!$A$10:$F$374,6,FALSE))","v":47.34},47.34,378.72]
["3.4.70","CPU_270","Disjuntor termomagnetico bipolar 20 A, padrão DIN (Europeu - linha branca), curva B","un",6,{"$f":"IF(B308=\"\",\"\",VLOOKUP(B308,'RELAÇÃO DE COMPOSIÇÕES'!$A$10:$F$374,6,FALSE))","v":47.34},47.34,284.04000000000002]
["3.4.71","CPU_271","Disjuntor termomagnetico tripolar 100 A, padrão DIN (Europeu - linha branca), 10KA","un",1,{"$f":"IF(B309=\"\",\"\",VLOOKUP(B309,'RELAÇÃO DE COMPOSIÇÕES'!$A$10:$F$374,6,FALSE))","v":497.79},497.79,497.79]
["3.4.72","CPU_272","Disjuntor termomagnetico tripolar 150 A, padrão DIN (Europeu - linha branca), corrente 10 KA","un",1,{"$f":"IF(B310=\"\",\"\",VLOOKUP(B310,'RELAÇÃO DE COMPOSIÇÕES'!$A$10:$F$374,6,FALSE))","v":262.25},262.25,262.25]
["3.4.73","CPU_273","Disjuntor termomagnetico tripolar  35 A, padrão DIN (Europeu - linha branca), 10KA, curva C","un",2,{"$f":"IF(B311=\"\",\"\",VLOOKUP(B311,'RELAÇÃO DE COMPOSIÇÕES'!$A$10:$F$374,6,FALSE))","v":227.72},227.72,455.44]
["3.4.74","CPU_274","Disjuntor termomagnetico tripolar  63 A, padrão DIN (Europeu - linha branca), curva C","un",1,{"$f":"IF(B312=\"\",\"\",VLOOKUP(B312,'RELAÇÃO DE COMPOSIÇÕES'!$A$10:$F$374,6,FALSE))","v":100.28},100.28,100.28]
["3.4.75","CPU_275","Disjuntor termomagnetico tripolar  80 A, padrão DIN (Europeu - linha branca), curva C, 5KA","un",2,{"$f":"IF(B313=\"\",\"\",VLOOKUP(B313,'RELAÇÃO DE COMPOSIÇÕES'!$A$10:$F$374,6,FALSE))","v":144.1},144.1,288.2]
["3.4.76","CPU_276","Disjuntor tetrapolar DR 63 A, tipo AC, corrente nominal residual 30mA, ref.: Siemens 5SM1 ou similar","un",1,{"$f":"IF(B314=\"\",\"\",VLOOKUP(B314,'RELAÇÃO DE COMPOSIÇÕES'!$A$10:$F$374,6,FALSE))","v":155.27000000000001},155.27000000000001,155.27000000000001]
["3.4.77","CPU_277","Cruzeta 100 x 50 mm para eletrocalha perfurada metálica (ref.: mopa ou similar)","un",1,{"$f":"IF(B315=\"\",\"\",VLOOKUP(B315,'RELAÇÃO DE COMPOSIÇÕES'!$A$10:$F$374,6,FALSE))","v":22.92},22.92,22.92]
["3.4.78","CPU_278","Cruzeta 50 x 50 mm para eletrocalha perfurada metálica (ref.: mopa ou similar)","un",1,{"$f":"IF(B316=\"\",\"\",VLOOKUP(B316,'RELAÇÃO DE COMPOSIÇÕES'!$A$10:$F$374,6,FALSE))","v":21.11},21.11,21.11]
["3.4.79","CPU_279","Curva horizontal 100 x 50 mm para eletrocalha metálica, com ângulo 90°","un",2,{"$f":"IF(B317=\"\",\"\",VLOOKUP(B317,'RELAÇÃO DE COMPOSIÇÕES'!$A$10:$F$374,6,FALSE))","v":17.97},17.97,35.94]
["3.4.80","CPU_280","Curva horizontal 50 x 50 mm para eletrocalha metálica, com ângulo 90°","un",4,{"$f":"IF(B318=\"\",\"\",VLOOKUP(B318,'RELAÇÃO DE COMPOSIÇÕES'!$A$10:$F$374,6,FALSE))","v":7},7,28]
["3.4.81","CPU_281","Eletrocalha metálica perfurada  50 x 50 x 3000 mm (ref. valemam ou similar)","un",193.9,{"$f":"IF(B319=\"\",\"\",VLOOKUP(B319,'RELAÇÃO DE COMPOSIÇÕES'!$A$10:$F$374,6,FALSE))","v":31.63},31.63,6133.06]
["3.4.82","CPU_282","Fornecimento e instalação de eletrocalha perfurada 100 x   50 x 3000 mm (ref. mopa ou similar)","m",107.52,{"$f":"IF(B320=\"\",\"\",VLOOKUP(B320,'RELAÇÃO DE COMPOSIÇÕES'!$A$10:$F$374,6,FALSE))","v":27.7},27.7,2978.3]
["3.4.83","CPU_283","Flange de ligação 100x50mm para eletrocalha metálica (ref. Mopa ou similar)","un",3,{"$f":"IF(B321=\"\",\"\",VLOOKUP(B321,'RELAÇÃO DE COMPOSIÇÕES'!$A$10:$F$374,6,FALSE))","v":15.08},15.08,45.24]
["3.4.84","CPU_284","Flange 50x50mm para eletrocalha metálica","und",4,{"$f":"IF(B322=\"\",\"\",VLOOKUP(B322,'RELAÇÃO DE COMPOSIÇÕES'!$A$10:$F$374,6,FALSE))","v":7.92},7.92,31.68]
["3.4.85","CPU_285","Fornecimento e instalação de mão francesa simples 100 mm","un",150,{"$f":"IF(B323=\"\",\"\",VLOOKUP(B323,'RELAÇÃO DE COMPOSIÇÕES'!$A$10:$F$374,6,FALSE))","v":10.9},10.9,1635]
["3.4.86","CPU_286","Redução concêntrica 100 x 50mm para eletrocalha metálica (ref. mopa ou similar)","un",3,{"$f":"IF(B324=\"\",\"\",VLOOKUP(B324,'RELAÇÃO DE COMPOSIÇÕES'!$A$10:$F$374,6,FALSE))","v":28.41},28.41,85.23]
["3.4.87","CPU_287","Saída horizontal para eletroduto 3/4\" (ref. vl 33 valemam ou similar)","un",7,{"$f":"IF(B325=\"\",\"\",VLOOKUP(B325,'RELAÇÃO DE COMPOSIÇÕES'!$A$10:$F$374,6,FALSE))","v":2.04},2.04,14.28]
["3.4.88","CPU_288","Saída horizontal para eletroduto 1\" (ref. vl 33 valemam ou similar)","un",21,{"$f":"IF(B326=\"\",\"\",VLOOKUP(B326,'RELAÇÃO DE COMPOSIÇÕES'!$A$10:$F$374,6,FALSE))","v":1.99},1.99,41.79]
["3.4.89","CPU_289","Saída horizontal para eletroduto 1 1/2\" (ref. vl 33 valemam ou similar)","un",4,{"$f":"IF(B327=\"\",\"\",VLOOKUP(B327,'RELAÇÃO DE COMPOSIÇÕES'!$A$10:$F$374,6,FALSE))","v":2.48},2.48,9.92]
["3.4.90","CPU_290","Tê horizontal 100 x 50 mm com base lisa perfurada para eletrocalha metálica (ref. Mopa ou similar)","un",1,{"$f":"IF(B328=\"\",\"\",VLOOKUP(B328,'RELAÇÃO DE COMPOSIÇÕES'!$A$10:$F$374,6,FALSE))","v":29.73},29.73,29.73]
["3.4.91","CPU_291","Tê horizontal 50 x 50 mm para eletrocalha metálica (ref. Mopa ou similar)","un",1,{"$f":"IF(B329=\"\",\"\",VLOOKUP(B329,'RELAÇÃO DE COMPOSIÇÕES'!$A$10:$F$374,6,FALSE))","v":20.45},20.45,20.45]
["3.4.92","CPU_292","Tala plana perfurada 50mm para eletrocalha metálica (ref.: mopa ou similar) - Rev 01","un",204,{"$f":"IF(B330=\"\",\"\",VLOOKUP(B330,'RELAÇÃO DE COMPOSIÇÕES'!$A$10:$F$374,6,FALSE))","v":4.38},4.38,893.52]
["3.4.93","CPU_293","Tampa de encaixe 100mm para Tê horizontal, zincada, para eletrocalha metálica (ref.: mopa ou similar)","un",1,{"$f":"IF(B331=\"\",\"\",VLOOKUP(B331,'RELAÇÃO DE COMPOSIÇÕES'!$A$10:$F$374,6,FALSE))","v":10.69},10.69,10.69]
["3.4.94","CPU_294","Tampa de encaixe 50mm para Tê horizontal, zincada, para eletrocalha metálica","und",1,{"$f":"IF(B332=\"\",\"\",VLOOKUP(B332,'RELAÇÃO DE COMPOSIÇÕES'!$A$10:$F$374,6,FALSE))","v":9.64},9.64,9.64]
["3.4.95","CPU_295","Tampa de encaixe 100mm para cruzeta, zincada, para eletrocalha metálica","und",1,{"$f":"IF(B333=\"\",\"\",VLOOKUP(B333,'RELAÇÃO DE COMPOSIÇÕES'!$A$10:$F$374,6,FALSE))","v":16.2},16.2,16.2]
["3.4.96","CPU_296","Tampa de encaixe 50mm para Cruzeta, zincada, para eletrocalha metálica","und",1,{"$f":"IF(B334=\"\",\"\",VLOOKUP(B334,'RELAÇÃO DE COMPOSIÇÕES'!$A$10:$F$374,6,FALSE))","v":16.57},16.57,16.57]
["3.4.97","CPU_297","Tampa de encaixe para curva horizontal 50 x 50 mm, lisa, galvanizada à fogo, com ângulo 90°","und",4,{"$f":"IF(B335=\"\",\"\",VLOOKUP(B335,'RELAÇÃO DE COMPOSIÇÕES'!$A$10:$F$374,6,FALSE))","v":31.94},31.94,127.76]
["3.4.98","CPU_298","Tampa de encaixe para redução concêntrica 100 x 50 x 50mm, lisa, galvanizada à fogo","und",3,{"$f":"IF(B336=\"\",\"\",VLOOKUP(B336,'RELAÇÃO DE COMPOSIÇÕES'!$A$10:$F$374,6,FALSE))","v":9.1300000000000008},9.1300000000000008,27.39]
["3.4.99","CPU_299","Tampa de encaixe para curva horizontal 100 x 100 mm, lisa, galvanizada à fogo, com ângulo 90° (ref.: mopa ou similar)","un",2,{"$f":"IF(B337=\"\",\"\",VLOOKUP(B337,'RELAÇÃO DE COMPOSIÇÕES'!$A$10:$F$374,6,FALSE))","v":29.58},29.58,59.16]
["3.4.100","CPU_300","Curva de inversão 50 x 50 mm para eletrocalha metálica (ref.: mopa ou similar)","un",4,{"$f":"IF(B338=\"\",\"\",VLOOKUP(B338,'RELAÇÃO DE COMPOSIÇÕES'!$A$10:$F$374,6,FALSE))","v":21.7},21.7,86.8]
["3.4.101","CPU_301","Tala plana perfurada 50mm para eletrocalha metálica (ref.: mopa ou similar) - Rev 01","un",40,{"$f":"IF(B339=\"\",\"\",VLOOKUP(B339,'RELAÇÃO DE COMPOSIÇÕES'!$A$10:$F$374,6,FALSE))","v":4.38},4.38,175.2]
["3.4.102","CPU_302","Terminal 50 x 50 mm para eletrocalha metalica (ref. vl 3.01-25 ge valemam ou similar)","un",4,{"$f":"IF(B340=\"\",\"\",VLOOKUP(B340,'RELAÇÃO DE COMPOSIÇÕES'!$A$10:$F$374,6,FALSE))","v":5.03},5.03,20.12]
["3.4.103","CPU_303","Eletroduto flexível de pvc (sanfonado), diâm = 32mm (1\")","m",200.4,{"$f":"IF(B341=\"\",\"\",VLOOKUP(B341,'RELAÇÃO DE COMPOSIÇÕES'!$A$10:$F$374,6,FALSE))","v":5.96},5.96,1194.3800000000001]
["3.4.104","CPU_304","Eletroduto flexível de pvc (sanfonado), diâm = 25mm (3/4\")","m",937.9,{"$f":"IF(B342=\"\",\"\",VLOOKUP(B342,'RELAÇÃO DE COMPOSIÇÕES'!$A$10:$F$374,6,FALSE))","v":4.8},4.8,4501.92]
["3.4.105","CPU_305","Eletroduto de pvc rígido roscável, diâm = 32mm (1\")","m",169.4,{"$f":"IF(B343=\"\",\"\",VLOOKUP(B343,'RELAÇÃO DE COMPOSIÇÕES'!$A$10:$F$374,6,FALSE))","v":11.9},11.9,2015.86]
["3.4.106","CPU_306","Eletroduto de pvc rígido roscável, diâm = 50mm (1 1/2\")","m",15,{"$f":"IF(B344=\"\",\"\",VLOOKUP(B344,'RELAÇÃO DE COMPOSIÇÕES'!$A$10:$F$374,6,FALSE))","v":16.63},16.63,249.45]
["3.4.107","CPU_307","Eletroduto de pvc rígido roscável, diâm = 40mm (1 1/4\")","m",7.1,{"$f":"IF(B345=\"\",\"\",VLOOKUP(B345,'RELAÇÃO DE COMPOSIÇÕES'!$A$10:$F$374,6,FALSE))","v":14.79},14.79,105.01]
["3.4.108","CPU_308","Eletroduto de pvc rígido roscável, diâm = 60mm (2\")","m",75,{"$f":"IF(B346=\"\",\"\",VLOOKUP(B346,'RELAÇÃO DE COMPOSIÇÕES'!$A$10:$F$374,6,FALSE))","v":22.38},22.38,1678.5]
["3.4.109","CPU_309","Eletroduto de pvc rígido roscável, diâm = 25mm (3/4\")","m",1076.2,{"$f":"IF(B347=\"\",\"\",VLOOKUP(B347,'RELAÇÃO DE COMPOSIÇÕES'!$A$10:$F$374,6,FALSE))","v":9.52},9.52,10245.42]
["3.4.110","CPU_310","Abraçadeira metálica tipo \"D\" de 1\"","un",211,{"$f":"IF(B348=\"\",\"\",VLOOKUP(B348,'RELAÇÃO DE COMPOSIÇÕES'!$A$10:$F$374,6,FALSE))","v":4.17},4.17,879.87]
["3.4.111","CPU_311","Abraçadeira metálica tipo \"D\" de 1 1/4\"","un",38,{"$f":"IF(B349=\"\",\"\",VLOOKUP(B349,'RELAÇÃO DE COMPOSIÇÕES'!$A$10:$F$374,6,FALSE))","v":4.8},{"$f":"IF(B349=\"\",\"\",ROUND(F349*(1+$H$6),2))","v":4.8},{"$f":"IF(B349=\"\",\"\",ROUND(E349*G349,2))","v":182.4}]
["3.4.112","CPU_312","Eletroduto de aço galvanizado, classe leve, dn 25 mm (1??), aparente, instalado em teto - fornecimento e instalação. af_11/2016_p","m",226.7,{"$f":"IF(B350=\"\",\"\",VLOOKUP(B350,'RELAÇÃO DE COMPOSIÇÕES'!$A$10:$F$374,6,FALSE))","v":21.77},21.77,4935.26]
["3.4.113","CPU_313","Eletroduto de aço galvanizado, classe semi pesado, dn 32 mm (1 1/4??), aparente, instalado em teto - fornecimento e instalação. af_11/2016_p","m",40.4,{"$f":"IF(B351=\"\",\"\",VLOOKUP(B351,'RELAÇÃO DE COMPOSIÇÕES'!$A$10:$F$374,6,FALSE))","v":36.47},36.47,1473.39]
["3.4.114","CPU_314","Eletroduto em ferro galvanizado pesado sem costura 2 1/2\" x 3m","un",7,{"$f":"IF(B352=\"\",\"\",VLOOKUP(B352,'RELAÇÃO DE COMPOSIÇÕES'!$A$10:$F$374,6,FALSE))","v":222.22},222.22,1555.54]
["3.4.115","CPU_315","Eletroduto em ferro galvanizado pesado sem costura 3\" x 3m","un",10,{"$f":"IF(B353=\"\",\"\",VLOOKUP(B353,'RELAÇÃO DE COMPOSIÇÕES'!$A$10:$F$374,6,FALSE))","v":273.14999999999998},{"$f":"IF(B353=\"\",\"\",ROUND(F353*(1+$H$6),2))","v":273.14999999999998},{"$f":"IF(B353=\"\",\"\",ROUND(E353*G353,2))","v":2731.5}]
["3.4.116","CPU_316","Luminária arandela tipo tartaruga, com grade, de sobrepor, com 1 lâmpada fluorescente de 15 w, sem reator - fornecimento e instalação. af_02/2020","un",2,{"$f":"IF(B354=\"\",\"\",VLOOKUP(B354,'RELAÇÃO DE COMPOSIÇÕES'!$A$10:$F$374,6,FALSE))","v":68.86},68.86,137.72]
["3.4.117","CPU_317","Luminária com proteção em vidro, incl. lâmpada vapor metálico 400w e reator, tecnolux, ref: lm-250v/5 (ou similar)","un",36,{"$f":"IF(B355=\"\",\"\",VLOOKUP(B355,'RELAÇÃO DE COMPOSIÇÕES'!$A$10:$F$374,6,FALSE))","v":556.85},556.85,20046.599999999999]
["3.4.118","CPU_318","Luminária de sobrepor, (tecnolux ref.FLP-6478/2x20) Tubled corpo/ refletor e aletas fabricadas em chapa de aço tratada e pintada em epoxi branco, para uso de 2 lampadas tubled de 20w","un",91,{"$f":"IF(B356=\"\",\"\",VLOOKUP(B356,'RELAÇÃO DE COMPOSIÇÕES'!$A$10:$F$374,6,FALSE))","v":212.33},212.33,19322.03]
["3.4.119","CPU_319","Aterramento composto de haste de cobre l = 2,40m, interligada com cabo de cobre tipo cordoalha","un",42,{"$f":"IF(B357=\"\",\"\",VLOOKUP(B357,'RELAÇÃO DE COMPOSIÇÕES'!$A$10:$F$374,6,FALSE))","v":75.45},75.45,3168.9]
["3.4.120","CPU_320","Caixa de inspeção para aterramento, circular, em polietileno, diâmetro interno = 0,3 m. af_05/2018","un",3,{"$f":"IF(B358=\"\",\"\",VLOOKUP(B358,'RELAÇÃO DE COMPOSIÇÕES'!$A$10:$F$374,6,FALSE))","v":20.96},20.96,62.88]
["3.4.121","CPU_321","Fornecimento de isolador roldana de porcelana","un",1,{"$f":"IF(B359=\"\",\"\",VLOOKUP(B359,'RELAÇÃO DE COMPOSIÇÕES'!$A$10:$F$374,6,FALSE))","v":4.2300000000000004},4.2300000000000004,4.2300000000000004]
["3.4.122","CPU_322","Quadro de comando de embutir p/iluminação , em chapa aço n°18, pintura eletrost., disj.mono 2A, botoeira tipo NF e NA, lamp.sinalizadora, contactor tripolar c/2 contatos aux., bornes de conexão e conectores","un",1,{"$f":"IF(B360=\"\",\"\",VLOOKUP(B360,'RELAÇÃO DE COMPOSIÇÕES'!$A$10:$F$374,6,FALSE))","v":2057.9899999999998},2057.9899999999998,2057.9899999999998]
["3.4.123","CPU_323","QDGBT - Quadro de distribuição geral de baixa tensão dim.: 2300x800x1000mm, contendo: disjuntor 3P 2500A, TC 2500/5A, oltímetro 96x96 600V, amperímetro 96x96 2500/5A, chave comutadora e demais acessórios","un",1,{"$f":"IF(B361=\"\",\"\",VLOOKUP(B361,'RELAÇÃO DE COMPOSIÇÕES'!$A$10:$F$374,6,FALSE))","v":50221.599999999999},50221.599999999999,50221.599999999999]
["3.4.124","CPU_324","Modulo para 18 medidores, com barramento 4,76x9,52mm, em policarbonato com proteção UV","un",1,{"$f":"IF(B362=\"\",\"\",VLOOKUP(B362,'RELAÇÃO DE COMPOSIÇÕES'!$A$10:$F$374,6,FALSE))","v":3498.07},3498.07,3498.07]
["3.4.125","CPU_325","Quadro de distribuicao de energia de embutir, em chapa metalica, para 24 disjuntores termomagneticos monopolares, com barramento trifasico e neutro, fornecimento e instalacao","un",1,{"$f":"IF(B363=\"\",\"\",VLOOKUP(B363,'RELAÇÃO DE COMPOSIÇÕES'!$A$10:$F$374,6,FALSE))","v":450.18},450.18,450.18]
["3.4.126","CPU_326","Quadro de distribuicao de energia de embutir, em chapa metalica, para 32 disjuntores termomagneticos monopolares, com barramento trifasico e neutro, fornecimento e instalacao","un",1,{"$f":"IF(B364=\"\",\"\",VLOOKUP(B364,'RELAÇÃO DE COMPOSIÇÕES'!$A$10:$F$374,6,FALSE))","v":518.46},518.46,518.46]
["3.4.127","CPU_327","Quadro de distribuicao, sem barramento, em pvc, de embutir,para 3 disjuntores nema ou 4 disjuntores din","un",1,{"$f":"IF(B365=\"\",\"\",VLOOKUP(B365,'RELAÇÃO DE COMPOSIÇÕES'!$A$10:$F$374,6,FALSE))","v":25.34},25.34,25.34]
["3.4.128","CPU_328","Quadro de distribuicao, sem barramento, em pvc, de embutir,para 6 disjuntores nema ou 8 disjuntores din","un",1,{"$f":"IF(B366=\"\",\"\",VLOOKUP(B366,'RELAÇÃO DE COMPOSIÇÕES'!$A$10:$F$374,6,FALSE))","v":40.04},40.04,40.04]
["3.4.129","CPU_329","Quadro de distribuicao de energia em chapa de aco galvanizado, para 12 disjuntores termomagneticos monopolares, com barramento trifasico e neutro - fornecimento e instalacao","un",1,{"$f":"IF(B367=\"\",\"\",VLOOKUP(B367,'RELAÇÃO DE COMPOSIÇÕES'!$A$10:$F$374,6,FALSE))","v":304.31},304.31,304.31]
["3.5",null,"INSTALAÇÕES DE INCÊNDIO"]
["3.5.1","CPU_330","Extintor de pó químico ABC, capacidade 8 kg, alcance médio do jato 5m , tempo de descarga 12s, NBR9443, 9444, 10721","un",4,{"$f":"IF(B369=\"\",\"\",VLOOKUP(B369,'RELAÇÃO DE COMPOSIÇÕES'!$A$10:$F$374,6,FALSE))","v":194.13},194.13,776.52]
["3.5.2","CPU_331","Luminaria de emergencia 30 leds, potencia 2 w, bateria de litio, autonomia de 6 horas","un",6,{"$f":"IF(B370=\"\",\"\",VLOOKUP(B370,'RELAÇÃO DE COMPOSIÇÕES'!$A$10:$F$374,6,FALSE))","v":22.66},22.66,135.96]
["3.5.3","CPU_332","Placa de sinalizacao de seguranca contra incendio, fotoluminescente, retangular, *20 x 40* cm, em pvc *2* mm anti-chamas (simbolos, cores e pictogramas conforme nbr 13434)","Un",2,{"$f":"IF(B371=\"\",\"\",VLOOKUP(B371,'RELAÇÃO DE COMPOSIÇÕES'!$A$10:$F$374,6,FALSE))","v":38.89},38.89,77.78]
["3.5.4","CPU_333","Placa de sinalizacao de seguranca contra incendio, fotoluminescente, retangular, *12 x 40* cm, em pvc *2* mm anti-chamas (simbolos, cores e pictogramas conforme nbr 13434)","Un",1,{"$f":"IF(B372=\"\",\"\",VLOOKUP(B372,'RELAÇÃO DE COMPOSIÇÕES'!$A$10:$F$374,6,FALSE))","v":29.58},29.58,29.58]
["3.5.5","CPU_334","Placa de indicativa de \"EXTINTOR\" em pvc, dim.: 20 x 20 cm","Un",4,{"$f":"IF(B373=\"\",\"\",VLOOKUP(B373,'RELAÇÃO DE COMPOSIÇÕES'!$A$10:$F$374,6,FALSE))","v":20.18},20.18,80.72]
["3.5.6","CPU_335","Sinalização permanente, vertical,  com placa de aço (50x80cm) com poste de madeira 3,50m fixado com base de concreto 40x40x50","un",2,{"$f":"IF(B374=\"\",\"\",VLOOKUP(B374,'RELAÇÃO DE COMPOSIÇÕES'!$A$10:$F$374,6,FALSE))","v":511.51},511.51,1023.02]
["3.5.7","CPU_336","Pintura acrilica para sinalização horizontal em piso cimentado","m2",2,{"$f":"IF(B375=\"\",\"\",VLOOKUP(B375,'RELAÇÃO DE COMPOSIÇÕES'!$A$10:$F$374,6,FALSE))","v":20.34},20.34,40.68]
[{"$nulls":6},"PREÇO GLOBAL",{"$f":"SUM(H14:H375)","v":1099532.5900000001}]

{"sheet":"RELAÇÃO DE COMPOSIÇÕES","index":1,"n_rows":374,"n_cols":7,"rows_kept":374,"cut":false,"hidden":false,"merged":[[7,0,7,6],[6,4,6,5],[0,0,0,6],[1,0,1,6],[2,0,2,6],[3,0,3,4],[4,0,4,4],[5,0,5,6]]}
[]
[]
[]
["COMPLEXO (REFORMA DA PRAÇA TENISSON FONTES - PRAÇA DE ALIMENTAÇÃO  E CONSTRUÇÃO DE TERMINAL RODOVIÁRIO) - ETAPA 1",{"$nulls":4},"DATA BASE: ","JUNHO"]
["município de Itabaianinha, no estado de Sergipe",{"$nulls":4},"BDI:",0.21390000000000001]
[]
[null,null,"RELAÇÃO DE COMPOSIÇÕES",null,"DESCONTO (LICITAÇÃO):",null,0.123]
[]
["CÓDIGO ORÇAMENTO","CÓDIGO REFERÊNCIA","DESCRIÇÃO","UNID.","CUST UNIT. CODEVASF","CUST UNIT. C/ DESCONTO","PERCENT. DESC. FINAL"]
[null,null,"ADMINISTRAÇÃO LOCAL E SERVIÇOS PRELIMINARES"]
[null," ","ADMINISTRAÇÃO LOCAL"]
[null," ","Equipe Dirigente"]
["CPU_1","90777 / SINAPI","Engenheiro civil de obra junior com encargos complementares","h",107.04,{"$f":"TRUNC(E13*(1-$G$7),2)","v":93.87},{"$f":"ROUND(F13/E13,4)","v":0.877}]
["CPU_2","90780 / SINAPI","Mestre de obras com encargos complementares","h",49.25,43.19,0.877]
["CPU_3","codevasf  01","Manutenção do Canteiro","un",3532.74,3098.21,0.877]
[null," ","SERVIÇOS PRELIMINARES"]
["CPU_4","51 / ORSE","Placa de obra em chapa aço galvanizado, instalada","m2",389.26,341.38,0.877]
["CPU_5","9416 / ORSE","Instalação provisória de energia elétrica, aerea, trifasica, em poste galvanizado, exclusive fornecimento do medidor","un",2227.4699999999998,1953.49,0.877]
["CPU_6","6096 / ORSE","Ligação Predial de Água em Mureta de Concreto, Provisória ou Definitiva, com Fornecimento de Material, inclusive Mureta e Hidrômetro, Rede DN 50mm","UN",524.14,459.67,0.877]
["CPU_7","98459 / SINAPI","Tapume com telha metálica. af_05/2018 (para o terminal rodoviário)","m2",84.34,73.959999999999994,0.87690000000000001]
["CPU_8","4654 / ORSE","Locação de container - Almoxarifado com banheiro - 6,00 x 2,30m","mês",501.12,439.48,0.877]
["CPU_9","4657 / ORSE","Locação de container - Escritório com banheiro - 6,20 x 2,20m","mês",641.42999999999995,562.53,0.877]
[null,null,"TERMINAL RODOVIÁRIO",null,null,0]
[null," ","DEMOLIÇÃO",null,null,0]
["CPU_10","07989 / ORSE","Demolição de pavimentação em paralelepípedo sem reaproveitamento","m2",10.79,9.4600000000000009,0.87670000000000003]
["CPU_11","72897 / SINAPI","Carga manual de entulho em caminhao basculante 6 m3","m3",24.28,21.29,0.87690000000000001]
[null," ","MOVIMENTAÇÃO DE TERRA",null,null,0]
["CPU_13","741541 / SINAPI","Escavacao, carga e transporte de  material de 1a categoria com trator sobre esteiras 347 hp e cacamba 6m3,  dmt 50 a 200m","m3",4.45,3.9,0.87639999999999996]
[null," ","PAVIMENTAÇÃO",null,null,0]
["CPU_14","11472 / ORSE","Regularização manual e compactão com placa vibratótia","m2",6.33,5.55,{"$f":"ROUND(F30/E30,4)","v":0.87680000000000002}]
["CPU_15","11466 / ORSE","Pavimento em concreto armado fck=25mpa, desempolado, e=10cm, p/ sobrecargas de até 4t/m2 c/ tela soldada Q138","m2",87.44,76.680000000000007,{"$f":"ROUND(F31/E31,4)","v":0.87690000000000001}]
["CPU_16","8906 / ORSE","Pavimentação em concreto usinado, bomb., lançado e adensado, não armado, pigment. BAYFERROX preto ou similar, fck=21Mpa, e = 10cm,regulariz. compac. subleito, lona plástica, incl. juntas serradas 5x10 a 40mm - Rev 03","m²",114.25,100.19,0.87690000000000001]
["CPU_17","4864 / ORSE","Piso tátil direcional e de alerta, em concreto colorido, p/deficientes visuais, dimensões 30x30cm, aplicado com argamassa industrializada ac-ii, rejuntado, exclusive regularização de base","m2",100.39,88.04,0.877]
["CPU_18","9962 / ORSE","Lastro de brita graduada apiloada e=10cm","m2",24.6,21.57,0.87680000000000002]
["CPU_19","95996 / SINAPI","Execução de pavimento com aplicação de concreto asfáltico, camada de binder - exclusive carga e transporte. af_11/2019","m3",1063.9000000000001,933.04,0.877]
["CPU_20","95995 / SINAPI","Execução de pavimento com aplicação de concreto asfáltico, camada de rolamento - exclusive carga e transporte. af_11/2019","m3",1123.05,984.91,0.877]
["CPU_21","93176 / SINAPI","Transporte de material asfaltico, com caminhão com capacidade de 30000 l em rodovia pavimentada para distâncias médias de transporte superiores a 100 km. af_02/2016","txkm",0.55000000000000004,0.48,0.87270000000000003]
["CPU_22","2592 / ORSE","Imprimação - execução com fornecimento de material","m2",12.2,10.69,0.87619999999999998]
["CPU_23","12214 / ORSE","Rampa padrão para acesso de deficientes a passeio público, em concreto simples Fck=25MPa, desempolada, com pintura indicativa em novacor, 02 demãos","un",322.74,283.04000000000002,0.877]
["CPU_24","94273 / SINAPI","Assentamento de guia (meio-fio) em trecho reto, confeccionada em concreto pré-fabricado, dimensões 100x15x13x30 cm (comprimento x base inferior x base superior x altura), para vias urbanas (uso viário). af_06/2016","m",33.58,29.44,0.87670000000000003]
[null," ","COBERTURA",null,null,0]
["CPU_25","2497 / ORSE","Escavação manual de vala ou cava em material de 1ª categoria, profundidade até 1,50m","m3",48.03,42.12,0.877]
["CPU_26","6456 / ORSE","Concreto Armado fck=21,0MPa, usinado, bombeado, adensado e lançado, para Uso Geral, com formas planas em compensado resinado 12mm (05 usos)","m3",1878.38,1647.33,0.877]
["CPU_27","12508 / ORSE","Estrutura Metálica p/ Cobertura c/Vigas-Treliça Pratt UDC75 e terças em UDC 127, 2 águas, sem lanternin, vãos 6,0 a 10,0m, pintado 1 d oxido ferro + 2 d esmalte epóxi branco, exceto forn. Telhas - Executada","m2",141.47999999999999,124.07,0.87690000000000001]
["CPU_28","9961 / ORSE","Telhamento com telha metálica em chapa de aço galvanizado natural ondulada e=0,5mm","m²",63.6,55.77,0.87690000000000001]
["CPU_29","9054 / ORSE","Fornecimento e instalação de brise metálico de alumínio ref. 84F, 45º L, da Fibrocell ou similar","m2",239.62,210.14,0.877]
[null," ","ESCADA E RAMPA",null,null,0]
["CPU_30","2497 / ORSE","Escavação manual de vala ou cava em material de 1ª categoria, profundidade até 1,50m","m3",48.03,42.12,0.877]
["CPU_31","91 / ORSE","Alvenaria pedra calcárea argamassada c/ cimento e areia traço t-4 (1:5) - 1 saco cimento 50kg / 5 padiolas areia dim. 0,35z0,45x0,23m - Confecção mecânica e transporte","m3",435.04,381.53,0.877]
["CPU_32","153 / ORSE","Alvenaria bloco cerâmico vedação, 9x19x24cm, e=19cm, com argamassa t5 - 1:2:8 (cimento/cal/areia), junta=1cm - Rev.08","m2",82.61,72.44,0.87690000000000001]
["CPU_33","3310 / ORSE","Chapisco em parede com argamassa traço t1 - 1:3 (cimento / areia) - Revisado 08/2015","m2",5.87,5.14,{"$f":"ROUND(F51/E51,4)","v":0.87560000000000004}]
["CPU_34","1908 / ORSE","Reboco ou emboço externo, de parede, com argamassa traço t5 - 1:2:8 (cimento / cal / areia), espessura 2,0 cm","m2",31.03,27.21,{"$f":"ROUND(F52/E52,4)","v":0.87690000000000001}]
["CPU_35","71 / ORSE","Aterro manual de áreas, sem aquisição de material, com espalhamento e compactação","m3",48.03,42.12,0.877]
["CPU_36","11466 / ORSE","Pavimento em concreto armado fck=25mpa, desempolado, e=10cm, p/ sobrecargas de até 4t/m2 c/ tela soldada Q138","m2",87.44,76.680000000000007,0.87690000000000001]
[null," ","INSTALAÇÕES DE COMBATE A INCÊNDIO",null,null,0,{"$error":"#DIV/0!"}]
["CPU_37","20977/ORSE","Extintor de incendio portatil com carga de po quimico seco (pqs) de 8 kg, classe bc","un",219.76,192.72,0.877]
["CPU_38","12138 / ORSE","Placa de indicativa de \"EXTINTOR\" em pvc, dim.: 20 x 20 cm","Un",23.02,20.18,0.87660000000000005]
["CPU_39","38774/ORSE","Luminaria de emergencia 30 leds, potencia 2 w, bateria de litio, autonomia de 6 horas","un",25.84,22.66,0.87690000000000001]
[null," ","DIVERSOS",null,null,0]
["CPU_40","3724 / ORSE","Demarcação de pavimentos com pintura de 1 demão de resina acrílica, e aplicação de micro-esferas para sinalização horizontal (Estacionamentos, faixas de pedrestres, etc.)","m2",14.3,12.54,0.87690000000000001]
["CPU_41","10839 / ORSE","Corrimão em tubo ferro galvanizado, alt=0,92m, com barras verticais dupla (2\") e barras horizontais nas extremidades de 2\", inclusive curva em aço (padrão) - para deficientes físicos","m",203.53,178.49,0.877]
["CPU_42","3226 / ORSE","Banco de concreto em alvenaria de tijolos, assento em concreto armado, sem encosto, pintado com tinta acrílica, 2 demãos","m",168.73,147.97,0.877]
["CPU_43","10234 / ORSE","Grama esmeralda em placas, fornecimento e plantio","m2",16.95,14.86,0.87670000000000003]
["CPU_44","10536 / ORSE","Lixeira em fibra de vidro, com capacidade 50l, com suporte (poste), FIOBERGLASS, REF. CLPD1085 ou similar","un",401.17,351.82,0.877]
["CPU_45","3167 / ORSE","Placa de inauguração de obra em alumínio 0,60 x 0,80 m","un",1702.22,1492.84,0.877]
["CPU_46","2450 / ORSE","Limpeza geral","m2",2.14,1.87,0.87380000000000002]
[null,null,"REFORMA DA PRAÇA TENISSON FONTES - ETAPA 1 - PRAÇA DE ALIMENTAÇÃO"]
[null," ","PRAÇA DE ALIMENTAÇÃO"]
[null," ","DEMOLIÇÕES/REMOÇÕES/RETIRADAS"]
["CPU_47","07989 / ORSE","Demolição de pavimentação em paralelepípedo sem reaproveitamento","m2",10.79,9.4600000000000009,0.87670000000000003]
["CPU_48","17 / ORSE","Demolição de reboco","m2",8,7.01,0.87629999999999997]
["CPU_49","30 / ORSE","Demolição de madeiramento em coberturas com telhas cerâmicas","m2",23.54,20.64,{"$f":"ROUND(F72/E72,4)","v":0.87680000000000002}]
["CPU_50","9 / ORSE","Remoção de telhamento com telhas cerâmicas","m2",10.79,9.4600000000000009,{"$f":"ROUND(F73/E73,4)","v":0.87670000000000003}]
["CPU_51","16 / ORSE","Demolição manual de piso cimentado sobre lastro de concreto - Rev 01","m2",23.54,20.64,0.87680000000000002]
["CPU_52","72897 / SINAPI","Carga manual de entulho em caminhao basculante 6 m3","m3",24.28,21.29,0.87690000000000001]
[null," ","ELEVAÇÕES",null,null,0]
["CPU_53","165 / ORSE","Alvenaria bloco cerâmico vedação, 9x19x24cm, e=24cm, com argamassa t5 - 1:2:8 (cimento/cal/areia), junta=2cm","m2",118.95,{"$f":"TRUNC(E77*(1-$G$7),2)","v":104.31},0.87690000000000001]
["CPU_54","3310 / ORSE","Chapisco em parede com argamassa traço t1 - 1:3 (cimento / areia) - Revisado 08/2015","m2",5.87,5.14,0.87560000000000004]
["CPU_55","1907 / ORSE","Chapisco em parede, rústico,  com argamassa traço t1 - 1:3 (cimento / areia) - revisado 08/2015","m2",17.88,15.68,0.877]
["CPU_56","169 / ORSE","Cobogó de cimento, tipo \"escama\", dim: 50 x 50cm","m2",115,100.85,0.877]
["CPU_57","3314 / ORSE","Reboco ou emboço interno, de parede, com argamassa traço t6 - 1:2:10 (cimento / cal / areia), espessura 1,5 cm","m2",28.07,24.61,0.87670000000000003]
[null," ","COBERTURA",null,null,0]
["CPU_58","4810 / ORSE","Madeiramento em massaranduba para telhado, peça principal serrada 14cm x 25cm, com abertura de encaixes","m",264.95,232.36,0.877]
["CPU_59","9189 / ORSE","Madeiramento em massaranduba/madeira de lei, acabamento serrado c/ riipão 5x3 e ripa 5x1,5, exclusive peças principais","m2",86.57,75.92,0.877]
["CPU_60","230 / ORSE","Telhamento com telha cerâmica tipo colonial, 1ª qualid, cor clara, Itabaianinha ou similar - Rev 02","m2",75.900000000000006,66.56,0.87690000000000001]
["CPU_61","96116 / SINAPI","Forro em réguas de pvc, frisado, para ambientes comerciais, inclusive estrutura de fixação. af_05/2017_p","m2",60.69,53.22,0.87690000000000001]
[null," ","PAVIMENTAÇÕES",null,null,0]
["CPU_62","5103 / ORSE","Regularização Manual","m2",4.8,4.2,0.875]
["CPU_63","9962 / ORSE","Lastro de brita graduada apiloada e=10cm","m2",24.6,21.57,0.87680000000000002]
["CPU_64","9445 / ORSE","Piso em concreto simples desempolado, fck = 21 MPa, e = 10 cm - Não inclui formas para juntas de concretagem","m²",59.63,52.29,0.87690000000000001]
["CPU_65","4555 / ORSE","Meio-fio de concreto simples, rejuntado com argamassa de cimento e areia no traço 1:3","m",28.34,24.85,0.87690000000000001]
["CPU_66","10168 / ORSE","Piso alta resistencia, colorido, e=10mm, aplicado com juntas, polido até o esmeril 400 e encerado","m2",49.03,42.99,0.87680000000000002]
["CPU_67","8906 / ORSE","Pavimentação em concreto usinado, bomb., lançado e adensado, não armado, pigment. BAYFERROX preto ou similar, fck=21Mpa, e = 10cm,regulariz. compac. subleito, lona plástica, incl. juntas serradas 5x10 a 40mm - Rev 03 (CINZA)","m²",114.25,100.19,{"$f":"ROUND(F93/E93,4)","v":0.87690000000000001}]
["CPU_68","8906 / ORSE","Pavimentação em concreto usinado, bomb., lançado e adensado, não armado, pigment. BAYFERROX preto ou similar, fck=21Mpa, e = 10cm,regulariz. compac. subleito, lona plástica, incl. juntas serradas 5x10 a 40mm - Rev 03 (VERMELHO)","m²",114.25,100.19,{"$f":"ROUND(F94/E94,4)","v":0.87690000000000001}]
["CPU_69","10064 / ORSE","Revestimento cerâmico para piso ou parede, 53 x 53 cm, Arielle, linha atenas, cor cinza ou bege, ou similar, PEI-5, aplicado com argamassa industrializada ac-ii, rejuntado, exclusive regularização de base ou emboço","m2",50.15,43.98,0.877]
["CPU_70","10273 / ORSE","Canaleta de drenagem em alvenaria de tijolo maciço, dimensões internas 40 x 50cm, com tampa de concreto, inclusive escavação manual","m",293.56,257.45,0.877]
[null," ","REVESTIMENTO BOXES E BANHEIROS",null,null,0]
["CPU_71","7593 / ORSE","Revestimento cerâmico para piso ou parede, 20 x 20 cm, Elizabeth ou similar, linha Cristal Branco, aplicado c/argamassa industrializada ac-ii, rejuntado, exclusive regularização de base ou emboço","m2",49.55,43.45,0.87690000000000001]
[null," ","ESQUADRIAS",null,null,0]
["CPU_72","7285 / ORSE","Soleira em granito branco fortaleza, l = 15 cm, e = 2 cm","m",68.75,60.29,0.87690000000000001]
["CPU_73","3314 / ORSE","Reboco ou emboço interno, de parede, com argamassa traço t6 - 1:2:10 (cimento / cal / areia), espessura 1,5 cm","m2",28.07,24.61,0.87670000000000003]
["CPU_74","190 / ORSE","Divisória em granito bege ipanema polido, e=3cm , inclusive montagem com ferragens","m2",400.59,351.31,0.877]
["CPU_75","9692 / ORSE","Porta em madeira compensada (canela), lisa, semi-ôca, (0,60 x 1,60 a 1,80m), p/pintura, inclusive ferragens (livre/ocupado), exclusive batente, para uso em divisórias granito ou marmore","un",910.01,798.07,0.877]
["CPU_76","7165 / ORSE","Porta em madeira compensada (canela), lisa, semi-ôca, 0.90 x 2.10 m, para sanitário de deficiente físico (inclusive batente, ferragens, fechadura, suporte e chapa de alumínio e=1mm) - Rev 03","un",1020.05,894.58,0.877]
["CPU_77","3547 / ORSE","Porta em madeira compensada (canela), lisa, semi-ôca, 0.80 x 2.10 m, inclusive batente e ferragens","un",605.05999999999995,530.63,0.877]
["CPU_78","1857 / ORSE","Porta em aço, em chapa galvanizada nº24, raiada, de enrolar","m2",223.14,195.69,0.877]
["CPU_79","11718 / ORSE","Portão em chapa de ferro veneziana tipo Z inclusive dobradiças, ferrolhos e chumbadores em chapa de ferro e=5mm","m2",601.53,527.54,0.877]
[null," ","PINTURA",null,null,0]
["CPU_80","2296 / ORSE","Pintura para exteriores, sobre paredes, com lixamento, aplicação de 01 demão de selador acrílico, 01 demão de textura acrílica branca e 02 demãos de tinta acrílica convencional","m2",38.770000000000003,34,0.877]
["CPU_81","742451 / SINAPI","Pintura acrilica em piso cimentado duas demaos (CHAPISCO FACHADA)","m2",15.86,13.9,0.87639999999999996]
["CPU_82","2298 / ORSE","Pintura para interiores, sobre paredes ou tetos, com lixamento, aplicação de 01 demão de líquido selador acrílico, 01 demão de textura acrílica branca e 02 demãos de tinta pva latex convencional para interiores","m2",38.200000000000003,33.5,0.877]
["CPU_83","2304 / ORSE","Pintura de proteção sobre superfícies metálicas com aplicação de 01 demão de tinta anti-corrosiva zarcão - R2","m2",9.3000000000000007,8.15,0.87629999999999997]
["CPU_84","7808 / ORSE","Pintura de acabamento com aplicação de 02 demãos de esmalte sobre superfícies metálicas - R1","m2",16.88,14.8,0.87680000000000002]
["CPU_85","2308 / ORSE","Pintura de acabamento com lixamento e aplicação de 02 demãos de esmalte sintético sobre madeira - R1","m2",17.079999999999998,14.97,{"$f":"ROUND(F114/E114,4)","v":0.87649999999999995}]
[null," ","PAISAGISMO",null,null,0]
["CPU_86","10234 / ORSE","Grama esmeralda em placas, fornecimento e plantio","m2",16.95,14.86,{"$f":"ROUND(F116/E116,4)","v":0.87670000000000003}]
["CPU_87","3319 / ORSE","Fornecimento e plantio de herbáceas ornamentais (pingo de ouro)","un",2.8,2.4500000000000002,0.875]
["CPU_88","8814 / ORSE","Fornecimento e plantio de palmeira mini imperial, média","un",108.13,94.83,0.877]
[null," ","DIVERSOS",null,null,0]
["CPU_89","12189 / ORSE","Corrimão duplo central em tubo de ferro galvanizado 1 1/2\", com chumbadores para fixação no piso","m",277.23,243.13,0.877]
["CPU_90","10536 / ORSE","Lixeira em fibra de vidro, com capacidade 50l, com suporte (poste), FIOBERGLASS, REF. CLPD1085 ou similar","un",401.17,351.82,0.877]
["CPU_91","3223 / ORSE","Banco de concreto pre-moldado com encosto e pintura (padrão emurb)","un",825.96,724.36,0.877]
["CPU_92","3226 / ORSE","Banco de concreto em alvenaria de tijolos, assento em concreto armado, sem encosto, pintado com tinta acrílica, 2 demãos","m",168.73,147.97,0.877]
["CPU_93","3167 / ORSE","Placa de inauguração de obra em alumínio 0,60 x 0,80 m","un",1702.22,1492.84,0.877]
["CPU_94","2450 / ORSE","Limpeza geral","m2",2.14,1.87,0.87380000000000002]
[null," ","INSTALAÇÕES HIDRÁULICAS",null,null,0]
["CPU_95","2038 / ORSE","Registro gaveta bruto  1/2\" (ref 1510 hd)  Deca ou similar","un",45.66,40.04,0.87690000000000001]
["CPU_96","1047 / ORSE","Adaptador de pvc rígido soldável c/ flanges livres p/ caixa de água diâm = 20mm x 1/2\"","un",11.65,10.210000000000001,0.87639999999999996]
["CPU_97","1036 / ORSE","Adaptador de pvc rígido soldável curto c/ bolsa e rosca p/ registro diâm = 20mm x 1/2\"","un",7.63,6.69,0.87680000000000002]
["CPU_98","1107 / ORSE","Curva 45º de pvc rígido soldável, marrom  diâm = 20mm","un",8.5299999999999994,7.48,0.87690000000000001]
["CPU_99","1116 / ORSE","Curva 90º de pvc rígido soldável, marrom  diâm = 20mm","un",9.01,7.9,0.87680000000000002]
["CPU_100","1149 / ORSE-C","Luva de pvc rígido soldável, marrom, diâm = 20mm","un",4.08,3.57,0.875]
["CPU_101","1027 / ORSE-C","Tubo pvc rígido soldável marrom p/ água, d = 20 mm (1/2\")","m",10.199999999999999,8.94,0.87649999999999995]
["CPU_102","1031 / ORSE-C","Tubo pvc rígido soldável marrom p/ água, d = 50 mm (1 1/2\")","m",38.880000000000003,34.090000000000003,0.87680000000000002]
["CPU_103","1167 / ORSE-C","Tê 90º de pvc rígido soldável, marrom  diâm = 20mm","un",8.49,7.44,{"$f":"ROUND(F135/E135,4)","v":0.87629999999999997}]
["CPU_104","1171 / ORSE-C","Tê 90º de pvc rígido soldável, marrom  diâm = 50mm","un",21.12,18.52,{"$f":"ROUND(F136/E136,4)","v":0.87690000000000001}]
["CPU_105","2021 / ORSE-C","Cuba de aço inox 304, dimensões 34 x 56cm, para instalação em bancada, c/ válvula cromada (deca ref 1623), sifão  cromado (deca ref c1680), torneira cromada (deca linha c40 ref1159) e engate de plástico ou similares","un",554.16,485.99,0.877]
["CPU_106","11736 / ORSE-C","Bancada em granito branco fortaleza, e = 2cm","m2",425.72,373.35,0.877]
["CPU_107","3671 / ORSE-C","Cuba de embutir, oval, CELITE 10116 ou similar, inclusive sifão cromado, válvula cromada para lavatório, engate cromado","un",368.47,323.14,0.877]
["CPU_108","2089 / ORSE-C","Lavatório louça (Deca-Ravena ref L-91 ou similares) sem coluna, c/ sifão cromado, válvula cromada, engate cromado, exclusive torneira","un",485.66,425.92,0.877]
["CPU_109","10345 / ORSE-C","Mictório de louça branca com sifão integrado, engate flexivel cromado 1/2\", registro de pressão 1/2\" com canopla cromada acabamento simples e conjunto de fixação","un",537.46,{"$f":"TRUNC(E141*(1-$G$7),2)","v":471.35},0.877]
["CPU_110","86923 / SINAPI-C","Tanque de louça branca suspenso, 18l ou equivalente, incluso sifão tipo garrafa em pvc, válvula plástica e torneira de metal cromado padrão popular - fornecimento e instalação. af_01/2020","un",465.42,408.17,0.877]
["CPU_111","86915 / SINAPI-C","Torneira cromada de mesa, 1/2? ou 3/4?, para lavatório, padrão médio - fornecimento e instalação. af_01/2020","un",82.08,71.98,0.87690000000000001]
["CPU_112","9017 / ORSE-C","Vaso sanitario c/caixa de descarga acoplada, c/saída horizontal, linha ravena, DECA ou similar, inclusive assento ASTRA TPK ou similar, conj. de fixação DECA SP13 ou similar, anel de vedação e engate plástico","un",469.73,411.95,0.877]
["CPU_113","7899 / ORSE-C","Vaso sanitário convencional, adaptado p/ deficiente físico com elevação do piso, linha popular, ELIZABETH ou similar, com assento plastico universal branco, cj.fixação, tubo de ligação e engate plástico, exceto cx. descarga - Rev 02","un",279.43,245.06,0.877]
["CPU_114","7589 / ORSE-C","Caixa de descarga de embutir com acabamento inox (Montana, linha Montreal ou similar)","un",357.15,313.22000000000003,0.877]
["CPU_115","1461 / ORSE-C","Registro gaveta bruto, d = 65 mm (2 1/2\") - ref.1502-B, Pn16, Deca ou similar","un",273.33,239.71,0.877]
["CPU_116","1457 / ORSE-C","Registro gaveta bruto, d = 25 mm (1\") - ref.1502-B, Pn16, Deca ou similar","un",79.48,69.7,0.877]
["CPU_117","1459 / ORSE-C","Registro gaveta bruto, d = 40 mm (1 1/2\") - ref.1502-B, Pn16, Deca ou similar","un",111.48,97.76,0.87690000000000001]
["CPU_118","1466 / ORSE-C","Registro gaveta c/ canopla cromada, d=25mm (1\") - ref.1509 Deca ou similar","un",110.38,96.8,0.877]
["CPU_119","3260 / ORSE-C","Fornecimento e instalação de torneira pressmatic 120 de parede, ref. 17160706, docol ou similar","un",287.22000000000003,251.89,0.877]
["CPU_120","1144 / ORSE-C","Joelho de redução 90º de pvc rígido soldável, marrom  diâm = 32 x 25mm","un",10.74,9.41,0.87619999999999998]
["CPU_121","1049 / ORSE-C","Adaptador de pvc rígido soldável c/ flanges livres p/ caixa de água diâm = 32mm x 1\"","un",19.809999999999999,17.37,0.87680000000000002]
["CPU_122","1051 / ORSE-C","Adaptador de pvc rígido soldável c/ flanges livres p/ caixa de água diâm = 50mm x 11/2\"","un",36.020000000000003,31.58,0.87670000000000003]
["CPU_123","1053 / ORSE-C","Adaptador de pvc rígido soldável c/ flanges livres p/ caixa de água diâm = 75mm x 21/2\"","un",153.15,134.31,0.877]
["CPU_124","89436 / SINAPI-C","Adaptador curto com bolsa e rosca para registro, pvc, soldável, dn 32mm x 1?, instalado em ramal de distribuição de água - fornecimento e instalação. af_12/2014","un",5.48,4.8,{"$f":"ROUND(F156/E156,4)","v":0.87590000000000001}]
["CPU_125","89596 / SINAPI-C","Adaptador curto com bolsa e rosca para registro, pvc, soldável, dn 50mm x 1.1/2?, instalado em prumada de água - fornecimento e instalação. af_12/2014","un",8.69,7.62,{"$f":"ROUND(F157/E157,4)","v":0.87690000000000001}]
["CPU_126","89613 / SINAPI-C","Adaptador curto com bolsa e rosca para registro, pvc, soldável, dn 75mm x 2.1/2?, instalado em prumada de água - fornecimento e instalação. af_12/2014","un",23.48,20.59,0.87690000000000001]
["CPU_127","1084 / ORSE-C","Bucha de redução longa de pvc rígido soldável, marrom, diâm = 50 x 32mm","un",16.34,14.33,0.877]
["CPU_128","1089 / ORSE-C","Bucha de redução longa de pvc rigido soldável, marrom, diâm = 75 x 50mm","un",29.48,25.85,0.87690000000000001]
["CPU_129","89369 / SINAPI-C","Curva 90 graus, pvc, soldável, dn 32mm, instalado em ramal ou sub-ramal de água - fornecimento e instalação. af_12/2014","un",14.18,12.43,0.87660000000000005]
["CPU_130","89503 / SINAPI-C","Curva 90 graus, pvc, soldável, dn 50mm, instalado em prumada de água - fornecimento e instalação. af_12/2014","un",18.95,16.61,0.87649999999999995]
["CPU_131","89517 / SINAPI-C","Curva 90 graus, pvc, soldável, dn 75mm, instalado em prumada de água - fornecimento e instalação. af_12/2014","un",54.95,48.19,0.877]
["CPU_132","10226 / ORSE-C","Joelho 90° pvc rígido soldável e c/rosca, diam = 25mm x 1/2\"","un",7.25,6.35,0.87590000000000001]
["CPU_133","1151 / ORSE-C","Luva de pvc rígido soldável, marrom, diâm = 32mm","un",5.84,5.12,0.87670000000000003]
["CPU_134","1028 / ORSE-C","Tubo pvc rígido soldável marrom p/ água, d = 25 mm (3/4\")","m",11.94,10.47,0.87690000000000001]
["CPU_135","1029 / ORSE-C","Tubo pvc rígido soldável marrom p/ água, d = 32 mm (1\")","m",16.28,14.27,0.87649999999999995]
["CPU_136","1031 / ORSE-C","Tubo pvc rígido soldável marrom p/ água, d = 50 mm (1 1/2\")","m",38.880000000000003,34.090000000000003,0.87680000000000002]
["CPU_137","1033 / ORSE-C","Tubo pvc rígido soldável marrom p/ água, d = 75 mm (2 1/2\")","m",70.040000000000006,61.42,0.87690000000000001]
["CPU_138","1169 / ORSE-C","Tê 90º de pvc rígido soldável, marrom  diâm = 32mm","un",11.43,10.02,0.87660000000000005]
["CPU_139","1171 / ORSE-C","Tê 90º de pvc rígido soldável, marrom  diâm = 50mm","un",21.12,18.52,0.87690000000000001]
["CPU_140","1173 / ORSE-C","Tê 90º de pvc rígido soldável, marrom  diâm = 75mm","un",69.39,60.85,0.87690000000000001]
["CPU_141","1177 / ORSE-C","Tê de redução 90º de pvc rígido soldável, marrom  diâm = 32 x 25mm","un",13.48,11.82,0.87690000000000001]
["CPU_142","1181 / ORSE-C","Tê de redução 90º de pvc rígido soldável, marrom  diâm = 50 x 32mm","un",25.61,22.45,0.87660000000000005]
["CPU_143","1183 / ORSE-C","Tê de redução 90º de pvc rígido soldável, marrom  diâm = 75 x 50mm","un",63.3,55.51,0.87690000000000001]
["CPU_144","4965 / ORSE-C","Joelho 90º pvc rígido soldável c/bucha de latão,  d= 25mm x 3/4\"","un",14.22,12.47,0.87690000000000001]
["CPU_145","479 / ORSE-C","Joelho 90º red. pvc rígido soldável c/bucha de latão, diâm= 25mmx1/2\"","un",12.53,10.98,{"$f":"ROUND(F177/E177,4)","v":0.87629999999999997}]
[null," ","INSTALAÇÕES DE ESGOTAMENTO SANITÁRIO",null,null,0]
["CPU_146","11334 / ORSE-C","Caixa de gordura  0.60 x 0.60 x 0.60m","un",546.77,479.51,{"$f":"ROUND(F179/E179,4)","v":0.877}]
["CPU_147","4883 / ORSE-C","Caixa de inspeção  0.60 x 0.60 x 0.60m","un",546.77,479.51,0.877]
["CPU_148","8343 / ORSE-C","Caixa de passagem em alvenaria de tijolos maciços esp. = 0,12m,  dim. int. =  0.70 x 0.70 x 0.80m","un",516.33000000000004,452.82,0.877]
["CPU_149","89707 / SINAPI-C","Caixa sifonada, pvc, dn 100 x 100 x 50 mm, junta elástica, fornecida e instalada em ramal de descarga ou em ramal de esgoto sanitário. af_12/2014","un",27.11,23.77,0.87680000000000002]
["CPU_150","1695 / ORSE-C","Caixa sifonada quadrada, com sete entradas e uma saída, d = 150 x 150 x 50mm, ref. nº25, acabamento branco, marca Akros ou similar","un",48.45,42.49,0.877]
["CPU_151","89728 / SINAPI-C","Curva curta 90 graus, pvc, serie normal, esgoto predial, dn 40 mm, junta soldável, fornecido e instalado em ramal de descarga ou ramal de esgoto sanitário. af_12/2014","un",8.6300000000000008,7.56,0.876]
["CPU_152","89733 / SINAPI-C","Curva curta 90 graus, pvc, serie normal, esgoto predial, dn 50 mm, junta elástica, fornecido e instalado em ramal de descarga ou ramal de esgoto sanitário. af_12/2014","un",14.56,12.76,0.87639999999999996]
["CPU_153","1553 / ORSE-C","Joelho 45° em pvc rígido soldável, para esgoto predial, diâm = 100mm","un",21.98,19.27,0.87670000000000003]
["CPU_154","1603 / ORSE-C","Joelho de 90° em pvc rígido soldável, para esgoto secundário, diâm = 40mm","un",9.25,8.11,0.87680000000000002]
["CPU_155","1551 / ORSE-C","Joelho 45° em pvc rígido soldável, para esgoto predial, diâm = 50mm","un",9.6300000000000008,8.44,0.87639999999999996]
["CPU_156","1556 / ORSE-C","Joelho 90° em pvc rígido soldável, para esgoto predial, diâm = 100mm","un",22.02,19.309999999999999,0.87690000000000001]
["CPU_157","1554 / ORSE-C","Joelho 90° em pvc rígido soldável, para esgoto predial, diâm = 50mm","un",9.17,8.0399999999999991,0.87680000000000002]
["CPU_158","1671 / ORSE-C","Joelho de 90° em pvc rígido c/ anéis, para esgoto secundário, diâm = 40mm","un",10.15,8.9,0.87680000000000002]
["CPU_159","1562 / ORSE-C","Junção simples em pvc rígido soldável, para esgoto primário, diâm = 100 x 50mm","un",37.56,32.94,0.877]
["CPU_160","1564 / ORSE-C","Junção simples em pvc rígido soldável, para esgoto primário, diâm = 100 x 100mm","un",44.18,38.74,0.87690000000000001]
["CPU_161","1583 / ORSE-C","Redução excentrica em pvc rígido soldável, para esgoto primário, diâm = 100 x 50mm","un",20.77,18.21,0.87670000000000003]
["CPU_162","1527 / ORSE-C","Tubo pvc rígido soldável ponta e bolsa p/ esgoto predial, d = 100 mm","m",33.85,29.68,0.87680000000000002]
["CPU_163","9377 / ORSE-C","Tubo pvc rigido soldavel, serie reforçada, p/esgoto e aguas pluviais, d= 100mm","m",47.44,41.6,0.87690000000000001]
["CPU_164","9388 / ORSE-C","Tubo pvc rígido c/anel borracha, serie reforçada, p/esgoto e aguas pluviais, d = 150mm","m",79.7,69.89,0.87690000000000001]
["CPU_165","9390 / ORSE-C","Tubo pvc rígido soldável, serie reforçada, p/esgoto e aguas pluviais, d =  50 mm","m",23.95,21,0.87680000000000002]
["CPU_166","9389 / ORSE-C","Tubo pvc rígido soldável, serie reforçada, p/esgoto e aguas pluviais, d =  40 mm","m",19.12,16.760000000000002,0.87660000000000005]
["CPU_167","9376 / ORSE-C","Tubo pvc rigido soldavel, série reforçada, p/esgoto e aguas pluviais, d=  75mm","m",35.729999999999997,31.33,0.87690000000000001]
["CPU_168","1551 / ORSE-C","Joelho 45° em pvc rígido soldável, para esgoto predial, diâm = 50mm","un",9.6300000000000008,8.44,0.87639999999999996]
["CPU_169","1554 / ORSE-C","Joelho 90° em pvc rígido soldável, para esgoto predial, diâm = 50mm","un",9.17,8.0399999999999991,0.87680000000000002]
["CPU_170","1594 / ORSE-C","Terminal de ventilação em pvc rígido soldável, para esgoto primário, diâm = 50mm","un",9.4,8.24,0.87660000000000005]
["CPU_171","1525 / ORSE-C","Tubo pvc rígido soldável ponta e bolsa p/ esgoto predial, d =  50 mm","m",18.850000000000001,16.53,0.87690000000000001]
["CPU_172","1585 / ORSE-C","Tê sanitário em pvc rígido soldável, para esgoto primário, diâm = 50 x 50mm","un",19.22,{"$f":"TRUNC(E205*(1-$G$7),2)","v":16.850000000000001},0.87670000000000003]
[null," ","FOSSA SEPTICA",null,null,0]
["CPU_173","2498 / ORSE-C","Escavação manual de vala ou cava em material de 1ª categoria, profundidade entre 1,50 e 3,00m","m3",72.040000000000006,63.17,0.87690000000000001]
["CPU_174","2509 / ORSE-C","Carga manual de material de 1ª categoria","m3",9.57,8.39,0.87670000000000003]
["CPU_175","94968 / SINAPI-C","Concreto magro para lastro, traço 1:4,5:4,5 (cimento/ areia média/ brita 1)  - preparo mecânico com betoneira 600 l. af_07/2016","m3",337.91,296.33999999999997,0.877]
["CPU_176","7369 / ORSE-C","Concreto Armado fck=30,0MPa, usinado, bombeado, adensado e lançado, para uso Geral, com formas planas em compensado resinado 12mm (05 usos)","m3",1897.57,1664.16,{"$f":"ROUND(F210/E210,4)","v":0.877}]
["CPU_177","72131 / SINAPI-C","Alvenaria em tijolo ceramico macico 5x10x20cm 1 vez (espessura 20cm), assentado com argamassa traco 1:2:8 (cimento, cal e areia)","m2",114.56,100.46,{"$f":"ROUND(F211/E211,4)","v":0.87690000000000001}]
["CPU_178","3317 / ORSE-C","Reboco especial de parede 2cm com argamassa traço t1 - 1:3 (cimento / areia)","m2",30.94,27.13,0.87690000000000001]
["CPU_179","5004 / ORSE-C","Impermeabilização semi-flexível com Sika Top 107 bi-componente, cor cinza, 03 demãos cruzadas aplicado à trincha para aplicação em paredes enterradas, subsolos, caixas d'agua, áreas frias e em contato com esgoto","m2",43.92,38.51,0.87680000000000002]
["CPU_180","6456 / ORSE-C","Concreto Armado fck=21,0MPa, usinado, bombeado, adensado e lançado, para Uso Geral, com formas planas em compensado resinado 12mm (05 usos) (VIGAS)","m3",1878.38,1647.33,0.877]
[null," ","FILTRO",null,null,0]
["CPU_181","2498 / ORSE-C","Escavação manual de vala ou cava em material de 1ª categoria, profundidade entre 1,50 e 3,00m","m3",72.040000000000006,63.17,0.87690000000000001]
["CPU_182","2509 / ORSE-C","Carga manual de material de 1ª categoria","m3",9.57,8.39,0.87670000000000003]
["CPU_183","94968 / SINAPI-C","Concreto magro para lastro, traço 1:4,5:4,5 (cimento/ areia média/ brita 1)  - preparo mecânico com betoneira 600 l. af_07/2016","m3",337.91,296.33999999999997,0.877]
["CPU_184","7369 / ORSE-C","Concreto Armado fck=30,0MPa, usinado, bombeado, adensado e lançado, para uso Geral, com formas planas em compensado resinado 12mm (05 usos)","m3",1897.57,1664.16,0.877]
["CPU_185","72131 / SINAPI-C","Alvenaria em tijolo ceramico macico 5x10x20cm 1 vez (espessura 20cm), assentado com argamassa traco 1:2:8 (cimento, cal e areia)","m2",114.56,100.46,0.87690000000000001]
["CPU_186","2799 / ORSE-C","Caixa de passagem em alvenaria de tijolos maciços esp. = 0,12m,  dim. int. =  0.60 x 0.60 x 1,00m","un",518.62,454.82,0.877]
["CPU_187","3317 / ORSE-C","Reboco especial de parede 2cm com argamassa traço t1 - 1:3 (cimento / areia)","m2",30.94,27.13,0.87690000000000001]
["CPU_188","5004 / ORSE-C","Impermeabilização semi-flexível com Sika Top 107 bi-componente, cor cinza, 03 demãos cruzadas aplicado à trincha para aplicação em paredes enterradas, subsolos, caixas d'agua, áreas frias e em contato com esgoto","m2",43.92,38.51,0.87680000000000002]
["CPU_189","125 / ORSE-C","Concreto simples fck= 15 MPA (b1/b2), fabricado na obra, sem lançamento e adensamento (PARA BASE DE APOIO PARA FUNDO FALSO)","m3",434.18,380.77,0.877]
["CPU_190","7369 / ORSE-C","Concreto Armado fck=30,0MPa, usinado, bombeado, adensado e lançado, para uso Geral, com formas planas em compensado resinado 12mm (05 usos) (PARA FUNDO FALSO COM FUROS)","m3",1897.57,1664.16,0.877]
["CPU_191","2659 / ORSE-C","Lastro de brita 4","m3",144.66999999999999,126.87,0.877]
[null," ","TANQUE SELADO",null,null,0]
["CPU_192","2498 / ORSE-C","Escavação manual de vala ou cava em material de 1ª categoria, profundidade entre 1,50 e 3,00m","m3",72.040000000000006,63.17,0.87690000000000001]
["CPU_193","2509 / ORSE-C","Carga manual de material de 1ª categoria","m3",9.57,8.39,0.87670000000000003]
["CPU_194","94968 / SINAPI-C","Concreto magro para lastro, traço 1:4,5:4,5 (cimento/ areia média/ brita 1)  - preparo mecânico com betoneira 600 l. af_07/2016","m3",337.91,296.33999999999997,0.877]
["CPU_195","7369 / ORSE-C","Concreto Armado fck=30,0MPa, usinado, bombeado, adensado e lançado, para uso Geral, com formas planas em compensado resinado 12mm (05 usos)","m3",1897.57,1664.16,{"$f":"ROUND(F231/E231,4)","v":0.877}]
["CPU_196","72131 / SINAPI-C","Alvenaria em tijolo ceramico macico 5x10x20cm 1 vez (espessura 20cm), assentado com argamassa traco 1:2:8 (cimento, cal e areia)","m2",114.56,100.46,{"$f":"ROUND(F232/E232,4)","v":0.87690000000000001}]
["CPU_197","2799 / ORSE-C","Caixa de passagem em alvenaria de tijolos maciços esp. = 0,12m,  dim. int. =  0.60 x 0.60 x 1,00m","un",518.62,454.82,0.877]
["CPU_198","3317 / ORSE-C","Reboco especial de parede 2cm com argamassa traço t1 - 1:3 (cimento / areia)","m2",30.94,27.13,0.87690000000000001]
["CPU_199","5004 / ORSE-C","Impermeabilização semi-flexível com Sika Top 107 bi-componente, cor cinza, 03 demãos cruzadas aplicado à trincha para aplicação em paredes enterradas, subsolos, caixas d'agua, áreas frias e em contato com esgoto","m2",43.92,38.51,0.87680000000000002]
["CPU_200","4254 / ORSE-C","Laje pré-fabricada treliçada para piso ou cobertura, intereixo 38cm, h=12cm, el. enchimento em bloco cerâmico h=8cm, inclusive escoramento em madeira e capeamento 4cm.","M2",162.44,142.44999999999999,0.87690000000000001]
[null," ","INSTALAÇÕES ELÉTRICAS",null,null,0]
["CPU_201","11276 / ORSE-C","Bucha com arruela em liga especial zamak p/eletroduto 85mm, d=3\"","un",9.01,7.9,0.87680000000000002]
["CPU_202","12501 / ORSE-C","Bucha com arruela em liga especial zamak p/eletroduto 75mm, d=2 1/2\"","un",9.82,8.61,0.87680000000000002]
["CPU_203","12463 / ORSE-C","Bucha com arruela em liga especial zamak p/eletroduto 50mm, d=2\"","un",8.43,7.39,0.87660000000000005]
["CPU_204","9924 / ORSE-C","Bucha com arruela em liga especial zamak p/eletroduto 20mm, d=3/4\"","un",1.01,0.88,0.87129999999999996]
["CPU_205","10793 / ORSE-C","Caixa de passagem pvc, 4\" x 2\", embutir, p/eletroduto - Rev 01","un",12.77,11.19,0.87629999999999997]
["CPU_206","743 / ORSE-C","Caixa de passagem pvc, 4\" x 4\" cm, embutir, p/eletroduto","un",14.54,12.75,0.87690000000000001]
["CPU_207","95785/SINAPE","Condulete tipo \"C\" de 1 1/4\" em alumínio fundido a prova de tempo, gases, vapores e pós.","un",27.28,23.92,0.87680000000000002]
["CPU_208","03893/ORSE","Condulete em alumínio tipo \"C\" de 1\"","un",26.85,23.54,0.87670000000000003]
["CPU_209","91937 / SINAPI-C","Caixa octogonal 3\" x 3\", pvc, instalada em laje - fornecimento e instalação. af_12/2015","un",9.2200000000000006,8.08,0.87639999999999996]
["CPU_210","93020 / SINAPI-C","Curva 90 graus para eletroduto, pvc, roscável, dn 60 mm (2\") - fornecimento e instalação. af_12/2015","un",23.29,20.420000000000002,0.87680000000000002]
["CPU_211","93018 / SINAPI-C","Curva 90 graus para eletroduto, pvc, roscável, dn 50 mm (1 1/2\") - fornecimento e instalação. af_12/2015","un",18.440000000000001,16.170000000000002,0.87690000000000001]
["CPU_212","91920 / SINAPI-C","Curva 90 graus para eletroduto, pvc, roscável, dn 40 mm (1 1/4\"), para circuitos terminais, instalada em parede - fornecimento e instalação. af_12/2015","un",16.670000000000002,14.61,0.87639999999999996]
["CPU_213","91917 / SINAPI-C","Curva 90 graus para eletroduto, pvc, roscável, dn 32 mm (1\"), para circuitos terminais, instalada em parede - fornecimento e instalação. af_12/2015","un",14.64,12.83,0.87639999999999996]
["CPU_214","91914 / SINAPI-C","Curva 90 graus para eletroduto, pvc, roscável, dn 25 mm (3/4\"), para circuitos terminais, instalada em parede - fornecimento e instalação. af_12/2015","un",12.14,10.64,0.87639999999999996]
["CPU_215","921 / ORSE-C","Fornecimento e assentamento de curva 90 de ferro galvanizado de 2 1/2\"","un",169.44,148.59,{"$f":"ROUND(F252/E252,4)","v":0.87690000000000001}]
["CPU_216","920 / ORSE-C","Fornecimento e assentamento de curva 90 de ferro galvanizado de     3\"","un",237.05,207.89,{"$f":"ROUND(F253/E253,4)","v":0.877}]
["CPU_217","375 / ORSE-C","Luva para eletroduto de pvc rígido roscável, diâm = 60mm (2\")","un",7.53,6.6,0.87649999999999995]
["CPU_218","372 / ORSE-C","Luva para eletroduto de pvc rígido roscável, diâm = 32mm (1\")","un",3.06,2.68,0.87580000000000002]
["CPU_219","374 / ORSE-C","Luva para eletroduto de pvc rígido roscável, diâm = 50mm (1 1/2\")","un",5.94,5.2,0.87539999999999996]
["CPU_220","373 / ORSE-C","Luva para eletroduto de pvc rígido roscável, diâm = 40mm (1 1/4\")","un",4.47,3.92,0.877]
["CPU_221","371 / ORSE-C","Luva para eletroduto de pvc rígido roscável, diâm = 25mm (3/4\")","un",1.97,1.72,0.87309999999999999]
["CPU_222","95758 / SINAPI-C","Luva de emenda para eletroduto, aço galvanizado, dn 25 mm (1''), aparente, instalada em parede - fornecimento e instalação. af_11/2016_p","un",10.99,9.6300000000000008,0.87629999999999997]
["CPU_223","95759 / SINAPI-C","Luva de emenda para eletroduto, aço galvanizado, dn 32 mm (1 1/4''), aparente, instalada em parede - fornecimento e instalação. af_11/2016_p","un",14.08,12.34,0.87639999999999996]
["CPU_224","940 / ORSE-C","Fornecimento e assentamento de luva de ferro galvanizado de 2 1/2\"","un",62.07,54.43,0.87690000000000001]
["CPU_225","941 / ORSE-C","Fornecimento e assentamento de luva de ferro galvanizado de     3\"","un",87.2,76.47,0.87690000000000001]
["CPU_226","05005/ORSE","Arruela lisa de aço galvanizada de Ø 1/4\"","un",0.12,0.1,0.83330000000000004]
["CPU_227","12506/ ORSE","Arruela de lisa 3/8\"","un",0.47,0.41,0.87229999999999996]
["CPU_228","02664/ORSE","Bucha de nylon s-06","un",0.06,0.05,0.83330000000000004]
["CPU_229","11945/ORSE","Bucha de nylon sem aba s4","un",0.04,0.03,0.75]
["CPU_230","4014 / ORSE-C","Fita isolante (rolo 20m) 3/4\" - Fornecimento","Un",8.4499999999999993,7.41,0.87690000000000001]
["CPU_231","04683/ORSE","Parafuso de ferro zincado c/rosca 3/8 \" x 1 1/2\"","un",0.69,0.6,0.86960000000000004]
["CPU_232","09831/ORSE","Parafuso galvaniz. cabeça panela 2,9x25mm autoatarrachante","und",0.39,{"$f":"TRUNC(E269*(1-$G$7),2)","v":0.34},0.87180000000000002]
["CPU_233","06903/ORSE","Parafuso fenda cabeça panela 4,2 x 32mm, auto-atarrachante","un",0.44,0.38,0.86360000000000003]
["CPU_234","10620/ORSE","Parafuso galvaniz. cabeça panela 4,8x45mm autoatarrachante","und",0.49,0.42,0.85709999999999997]
["CPU_235","10621/ORSE","Parafuso galvaniz. cabeça panela 6,3x50mm autoatarrachante","und",0.53,0.46,0.8679]
["CPU_236","04332/ORSE","Parafuso zincado, sextavado, com rosca inteira, diametro 3/8\", comprimento 2\"","un",0.92,0.8,{"$f":"ROUND(F273/E273,4)","v":0.86960000000000004}]
["CPU_237","06905/ORSE","Parafuso cabeça lentilha 1/4\" x 5/8\", rosca total","un",0.49,0.42,{"$f":"ROUND(F274/E274,4)","v":0.85709999999999997}]
["CPU_238","12495/ORSE","Porca sextavada 1/4\"","un",0.26,0.22,0.84619999999999995]
["CPU_239","12614/ORSE","Porca sextavada 3/8 \"","un",0.18,0.15,0.83330000000000004]
["CPU_240","11862/ORSE","Suporte em ferro galv. para descida do cabo tipo reforçado com chapa de encosto em 90°","un",44.61,39.119999999999997,0.87690000000000001]
["CPU_241","11850/ORSE","Vergalhão galvanizado tipo rosca total de 1/4\" x 3m","m",3.17,2.78,0.877]
["CPU_242","11851/ORSE","Vergalhão (Tirante) com rosca total ø 1/4\"x1000mm (marvitec ref. 1431 ou similar)","un",12.28,10.76,0.87619999999999998]
["CPU_243","11273/ORSE","Caixa de equipotencialização em aço 200x200x90mm, para embutir com tampa, com 9 terminais, ref:TEL-901 ou similar (SPDA)","un",477.61,418.86,0.877]
["CPU_244","03812/ORSE","Cabo de cobre isolado HEPR (XLPE),  10mm²,  1kv / 90º C","m",12.18,10.68,0.87680000000000002]
["CPU_245","03813/ORSE","Cabo de cobre isolado HEPR (XLPE),  16mm²,  1kv / 90º C","m",18.809999999999999,16.489999999999998,0.87670000000000003]
["CPU_246","03814/ORSE","Cabo de cobre isolado HEPR (XLPE),  25mm²,  1kv / 90º C","m",31.85,27.93,0.87690000000000001]
["CPU_247","02626/ORSE","Cabo de cobre isolado HEPR (XLPE),  35mm²,  1kv / 90º C","m",40.61,35.61,0.87690000000000001]
["CPU_248","03817/ORSE","Cabo de cobre isolado HEPR (XLPE),   4,0mm²,  1kv / 90º C","m",4.3,3.77,0.87670000000000003]
["CPU_249","03815/ORSE","Cabo de cobre isolado HEPR (XLPE),  70mm²,  1kv / 90º C","m",79.790000000000006,69.97,0.87690000000000001]
["CPU_250","10803/ORSE","Cabo de cobre isolado HEPR (XLPE),   6,0mm²,  1kv / 90º C","m",3.99,3.49,0.87470000000000003]
["CPU_251","02993/ORSE","Cabo cobre flexível, isolado,  1,5mm2 - 450/750V / 70º","m",0.86,0.75,0.87209999999999999]
["CPU_252","02994/ORSE","Cabo cobre flexível, isolado,  2,5mm2 - 450/750V / 70º","m",1.36,1.19,0.875]
["CPU_253","02996/ORSE","Cabo cobre flexível, isolado,  4,0mm2 - 450/750V / 70º","m",2.4500000000000002,2.14,0.87350000000000005]
["CPU_254","2815 / ORSE","Caixa de passagem em alvenaria de tijolos maciços esp. = 0,12m,  dim. int. =  0,30 x 0,30 x 0,40m","un",131.44,115.27,0.877]
["CPU_255","8075 / ORSE-C","Caixa de passagem em alvenaria de tijolos maciços esp. = 0,12m,  dim. int. =  0,30 x 0,30 x 0,30m","un",112.36,98.53,0.87690000000000001]
["CPU_256","8076 / ORSE-C","Caixa de passagem em alvenaria de tijolos maciços esp. = 0,12m,  dim. int. =  0.50 x 0.50 x 0.50m","un",269.64,236.47,0.877]
["CPU_257","9139 / ORSE-C","Caixa de passagem pvc 20 x 20cm, sistema \"x\", com tampa","un",45.4,39.81,{"$f":"ROUND(F294/E294,4)","v":0.87690000000000001}]
["CPU_258","91977 / SINAPI-C","Interruptor simples (6 módulos), 10a/250v, incluindo suporte e placa - fornecimento e instalação. af_12/2015","un",97.76,85.73,{"$f":"ROUND(F295/E295,4)","v":0.87690000000000001}]
["CPU_259","92029 / SINAPI-C","Interruptor paralelo (1 módulo) com 1 tomada de embutir 2p+t 10 a,  incluindo suporte e placa - fornecimento e instalação. af_12/2015","un",47.53,41.68,0.87690000000000001]
["CPU_260","92023 / SINAPI-C","Interruptor simples (1 módulo) com 1 tomada de embutir 2p+t 10 a,  incluindo suporte e placa - fornecimento e instalação. af_12/2015","un",41.96,36.79,0.87680000000000002]
["CPU_261","92027 / SINAPI-C","Interruptor simples (2 módulos) com 1 tomada de embutir 2p+t 10 a,  incluindo suporte e placa - fornecimento e instalação. af_12/2015","un",55.8,48.93,0.87690000000000001]
["CPU_262","09096/ORSE","Tomada 2p + t, ABNT, de embutir, 10 A, com placa em pvc","un",8.11,7.11,0.87670000000000003]
["CPU_263","09097/ORSE","Tomada 2p + t, ABNT, de embutir, 20 A, com placa em pvc","un",13.82,12.12,0.877]
["CPU_264","09106/ORSE","Tomada dupla, de embutir, para uso geral, 2p+t, ABNT, 10A","un",9.58,8.4,0.87680000000000002]
["CPU_265","02650/ORSE","Relé fotoelétrico 1000 w - 220 v","un",21.1,18.5,0.87680000000000002]
["CPU_266","8633 / ORSE-C","Disjuntor termomagnetico monopolar 10 A, padrão DIN (linha branca) curva de disparo B, corrente de interrupção 5KA, ref.: Siemens 5 SX1 ou similar.","un",18.350000000000001,16.09,0.87680000000000002]
["CPU_267","8306 / ORSE-C","Disjuntor termomagnetico monopolar 20 A, padrão DIN (Europeu - linha branca), curva B, corrente 5KA","un",18.350000000000001,16.09,0.87680000000000002]
["CPU_268","10315 / ORSE-C","Disjuntor termomagnetico monopolar 32 A, padrão DIN (Europeu - linha branca)","un",15.7,13.76,0.87639999999999996]
["CPU_269","8484 / ORSE-C","Disjuntor termomagnetico bipolar 10 A, padrão DIN (linha branca)","un",53.98,47.34,0.877]
["CPU_270","7743 / ORSE-C","Disjuntor termomagnetico bipolar 20 A, padrão DIN (Europeu - linha branca), curva B","un",53.98,47.34,0.877]
["CPU_271","8490 / ORSE-C","Disjuntor termomagnetico tripolar 100 A, padrão DIN (Europeu - linha branca), 10KA","un",567.61,497.79,0.877]
["CPU_272","8420 / ORSE-C","Disjuntor termomagnetico tripolar 150 A, padrão DIN (Europeu - linha branca), corrente 10 KA","un",299.04000000000002,262.25,0.877]
["CPU_273","11565 / ORSE-C","Disjuntor termomagnetico tripolar  35 A, padrão DIN (Europeu - linha branca), 10KA, curva C","un",259.66000000000003,227.72,0.877]
["CPU_274","452 / ORSE-C","Disjuntor termomagnetico tripolar  63 A, padrão DIN (Europeu - linha branca), curva C","un",114.35,100.28,0.877]
["CPU_275","9004 / ORSE-C","Disjuntor termomagnetico tripolar  80 A, padrão DIN (Europeu - linha branca), curva C, 5KA","un",164.32,144.1,0.87690000000000001]
["CPU_276","03621/ORSE","Disjuntor tetrapolar DR 63 A, tipo AC, corrente nominal residual 30mA, ref.: Siemens 5SM1 ou similar","un",177.05,155.27000000000001,0.877]
["CPU_277","08311/ORSE","Cruzeta 100 x 50 mm para eletrocalha perfurada metálica (ref.: mopa ou similar)","un",26.14,22.92,0.87680000000000002]
["CPU_278","06613/ORSE","Cruzeta 50 x 50 mm para eletrocalha perfurada metálica (ref.: mopa ou similar)","un",24.08,21.11,{"$f":"ROUND(F315/E315,4)","v":0.87670000000000003}]
["CPU_279","04217/ORSE","Curva horizontal 100 x 50 mm para eletrocalha metálica, com ângulo 90°","un",20.5,17.97,{"$f":"ROUND(F316/E316,4)","v":0.87660000000000005}]
["CPU_280","08946/ORSE","Curva horizontal 50 x 50 mm para eletrocalha metálica, com ângulo 90°","un",7.99,7,0.87609999999999999]
["CPU_281","00857/ORSE","Eletrocalha metálica perfurada  50 x 50 x 3000 mm (ref. valemam ou similar)","un",36.07,31.63,0.87690000000000001]
["CPU_282","762 / ORSE-C","Fornecimento e instalação de eletrocalha perfurada 100 x   50 x 3000 mm (ref. mopa ou similar)","m",31.59,27.7,0.87690000000000001]
["CPU_283","9533 / ORSE-C","Flange de ligação 100x50mm para eletrocalha metálica (ref. Mopa ou similar)","un",17.2,15.08,0.87670000000000003]
["CPU_284","01264/ORSE","Flange 50x50mm para eletrocalha metálica","und",9.0399999999999991,7.92,0.87609999999999999]
["CPU_285","11298 / ORSE-C","Fornecimento e instalação de mão francesa simples 100 mm","un",12.44,10.9,0.87619999999999998]
["CPU_286","11831 / ORSE-C","Redução concêntrica 100 x 50mm para eletrocalha metálica (ref. mopa ou similar)","un",32.4,28.41,0.87690000000000001]
["CPU_287","02003/ORSE","Saída horizontal para eletroduto 3/4\" (ref. vl 33 valemam ou similar)","un",2.33,2.04,0.87549999999999994]
["CPU_288","02001/ORSE","Saída horizontal para eletroduto 1\" (ref. vl 33 valemam ou similar)","un",2.27,1.99,0.87670000000000003]
["CPU_289","02000/ORSE","Saída horizontal para eletroduto 1 1/2\" (ref. vl 33 valemam ou similar)","un",2.83,2.48,0.87629999999999997]
["CPU_290","8113 / ORSE-C","Tê horizontal 100 x 50 mm com base lisa perfurada para eletrocalha metálica (ref. Mopa ou similar)","un",33.9,29.73,0.877]
["CPU_291","8686 / ORSE-C","Tê horizontal 50 x 50 mm para eletrocalha metálica (ref. Mopa ou similar)","un",23.32,20.45,0.87690000000000001]
["CPU_292","9524 / ORSE-C","Tala plana perfurada 50mm para eletrocalha metálica (ref.: mopa ou similar) - Rev 01","un",5,4.38,0.876]
["CPU_293","12530 / ORSE-C","Tampa de encaixe 100mm para Tê horizontal, zincada, para eletrocalha metálica (ref.: mopa ou similar)","un",12.2,10.69,0.87619999999999998]
["CPU_294","09527/ORSE","Tampa de encaixe 50mm para Tê horizontal, zincada, para eletrocalha metálica","und",11,9.64,0.87639999999999996]
["CPU_295","\n12530/ ORSE\n","Tampa de encaixe 100mm para cruzeta, zincada, para eletrocalha metálica","und",18.48,16.2,0.87660000000000005]
["CPU_296","12590/ORSE","Tampa de encaixe 50mm para Cruzeta, zincada, para eletrocalha metálica","und",18.899999999999999,{"$f":"TRUNC(E333*(1-$G$7),2)","v":16.57},0.87670000000000003]
["CPU_297","12588/ORSE","Tampa de encaixe para curva horizontal 50 x 50 mm, lisa, galvanizada à fogo, com ângulo 90°","und",36.43,31.94,0.87670000000000003]
["CPU_298","12616/ORSE","Tampa de encaixe para redução concêntrica 100 x 50 x 50mm, lisa, galvanizada à fogo","und",10.42,9.1300000000000008,0.87619999999999998]
["CPU_299","12497 / ORSE-C","Tampa de encaixe para curva horizontal 100 x 100 mm, lisa, galvanizada à fogo, com ângulo 90° (ref.: mopa ou similar)","un",33.74,29.58,{"$f":"ROUND(F336/E336,4)","v":0.87670000000000003}]
["CPU_300","7880 / ORSE-C","Curva de inversão 50 x 50 mm para eletrocalha metálica (ref.: mopa ou similar)","un",24.75,21.7,{"$f":"ROUND(F337/E337,4)","v":0.87680000000000002}]
["CPU_301","9524 / ORSE-C","Tala plana perfurada 50mm para eletrocalha metálica (ref.: mopa ou similar) - Rev 01","un",5,4.38,0.876]
["CPU_302","726 / ORSE-C","Terminal 50 x 50 mm para eletrocalha metalica (ref. vl 3.01-25 ge valemam ou similar)","un",5.74,5.03,0.87629999999999997]
["CPU_303","4278 / ORSE-C","Eletroduto flexível de pvc (sanfonado), diâm = 32mm (1\")","m",6.8,5.96,0.87649999999999995]
["CPU_304","399 / ORSE-C","Eletroduto flexível de pvc (sanfonado), diâm = 25mm (3/4\")","m",5.48,4.8,0.87590000000000001]
["CPU_305","354 / ORSE-C","Eletroduto de pvc rígido roscável, diâm = 32mm (1\")","m",13.57,11.9,0.87690000000000001]
["CPU_306","356 / ORSE-C","Eletroduto de pvc rígido roscável, diâm = 50mm (1 1/2\")","m",18.97,16.63,0.87660000000000005]
["CPU_307","355 / ORSE-C","Eletroduto de pvc rígido roscável, diâm = 40mm (1 1/4\")","m",16.87,14.79,0.87670000000000003]
["CPU_308","357 / ORSE-C","Eletroduto de pvc rígido roscável, diâm = 60mm (2\")","m",25.53,22.38,0.87660000000000005]
["CPU_309","353 / ORSE-C","Eletroduto de pvc rígido roscável, diâm = 25mm (3/4\")","m",10.86,9.52,0.87660000000000005]
["CPU_310","12140 / ORSE-C","Abraçadeira metálica tipo \"D\" de 1\"","un",4.76,4.17,0.87609999999999999]
["CPU_311","7750 / ORSE-C","Abraçadeira metálica tipo \"D\" de 1 1/4\"","un",5.48,4.8,0.87590000000000001]
["CPU_312","95746 / SINAPI-C","Eletroduto de aço galvanizado, classe leve, dn 25 mm (1??), aparente, instalado em teto - fornecimento e instalação. af_11/2016_p","m",24.83,21.77,0.87680000000000002]
["CPU_313","95747 / SINAPI-C","Eletroduto de aço galvanizado, classe semi pesado, dn 32 mm (1 1/4??), aparente, instalado em teto - fornecimento e instalação. af_11/2016_p","m",41.59,36.47,0.87690000000000001]
["CPU_314","7920 / ORSE-C","Eletroduto em ferro galvanizado pesado sem costura 2 1/2\" x 3m","un",253.39,222.22,0.877]
["CPU_315","8022 / ORSE-C","Eletroduto em ferro galvanizado pesado sem costura 3\" x 3m","un",311.45999999999998,273.14999999999998,0.877]
["CPU_316","97608 / SINAPI-C","Luminária arandela tipo tartaruga, com grade, de sobrepor, com 1 lâmpada fluorescente de 15 w, sem reator - fornecimento e instalação. af_02/2020","un",78.52,68.86,0.877]
["CPU_317","3456 / ORSE-C","Luminária com proteção em vidro, incl. lâmpada vapor metálico 400w e reator, tecnolux, ref: lm-250v/5 (ou similar)","un",634.95000000000005,556.85,0.877]
["CPU_318","12368 / ORSE-C","Luminária de sobrepor, (tecnolux ref.FLP-6478/2x20) Tubled corpo/ refletor e aletas fabricadas em chapa de aço tratada e pintada em epoxi branco, para uso de 2 lampadas tubled de 20w","un",242.11,212.33,0.877]
["CPU_319","3290 / ORSE-C","Aterramento composto de haste de cobre l = 2,40m, interligada com cabo de cobre tipo cordoalha","un",86.04,75.45,0.87690000000000001]
["CPU_320","98111 / SINAPI-C","Caixa de inspeção para aterramento, circular, em polietileno, diâmetro interno = 0,3 m. af_05/2018","un",23.9,20.96,{"$f":"ROUND(F357/E357,4)","v":0.877}]
["CPU_321","2892 / ORSE-C","Fornecimento de isolador roldana de porcelana","un",4.83,4.2300000000000004,{"$f":"ROUND(F358/E358,4)","v":0.87580000000000002}]
["CPU_322","9379/ORSE","Quadro de comando de embutir p/iluminação , em chapa aço n°18, pintura eletrost., disj.mono 2A, botoeira tipo NF e NA, lamp.sinalizadora, contactor tripolar c/2 contatos aux., bornes de conexão e conectores","un",2346.63,2057.9899999999998,0.877]
["CPU_323","10687/ORSE","QDGBT - Quadro de distribuição geral de baixa tensão dim.: 2300x800x1000mm, contendo: disjuntor 3P 2500A, TC 2500/5A, oltímetro 96x96 600V, amperímetro 96x96 2500/5A, chave comutadora e demais acessórios","un",57265.23,50221.599999999999,0.877]
["CPU_324","12645/ORSE","Modulo para 18 medidores, com barramento 4,76x9,52mm, em policarbonato com proteção UV","un",3988.68,3498.07,0.877]
["CPU_325","741315 / SINAPI-C","Quadro de distribuicao de energia de embutir, em chapa metalica, para 24 disjuntores termomagneticos monopolares, com barramento trifasico e neutro, fornecimento e instalacao","un",513.32000000000005,450.18,0.877]
["CPU_326","741316 / SINAPI-C","Quadro de distribuicao de energia de embutir, em chapa metalica, para 32 disjuntores termomagneticos monopolares, com barramento trifasico e neutro, fornecimento e instalacao","un",591.17999999999995,518.46,0.877]
["CPU_327","39794/ORSE","Quadro de distribuicao, sem barramento, em pvc, de embutir,para 3 disjuntores nema ou 4 disjuntores din","un",28.9,25.34,0.87680000000000002]
["CPU_328","39795/ORSE","Quadro de distribuicao, sem barramento, em pvc, de embutir,para 6 disjuntores nema ou 8 disjuntores din","un",45.66,40.04,0.87690000000000001]
["CPU_329","83463 / SINAPI-C","Quadro de distribuicao de energia em chapa de aco galvanizado, para 12 disjuntores termomagneticos monopolares, com barramento trifasico e neutro - fornecimento e instalacao","un",346.99,304.31,0.877]
[null," ","INSTALAÇÕES DE INCÊNDIO",null,null,0]
["CPU_330","9221 / ORSE-C","Extintor de pó químico ABC, capacidade 8 kg, alcance médio do jato 5m , tempo de descarga 12s, NBR9443, 9444, 10721","un",221.36,194.13,0.877]
["CPU_331","38774/ORSE","Luminaria de emergencia 30 leds, potencia 2 w, bateria de litio, autonomia de 6 horas","un",25.84,22.66,0.87690000000000001]
["CPU_332","11853 / ORSE-C","Placa de sinalizacao de seguranca contra incendio, fotoluminescente, retangular, *20 x 40* cm, em pvc *2* mm anti-chamas (simbolos, cores e pictogramas conforme nbr 13434)","Un",44.35,38.89,0.87690000000000001]
["CPU_333","11852 / ORSE-C","Placa de sinalizacao de seguranca contra incendio, fotoluminescente, retangular, *12 x 40* cm, em pvc *2* mm anti-chamas (simbolos, cores e pictogramas conforme nbr 13434)","Un",33.74,29.58,0.87670000000000003]
["CPU_334","12138 / ORSE","Placa de indicativa de \"EXTINTOR\" em pvc, dim.: 20 x 20 cm","Un",23.02,20.18,0.87660000000000005]
["CPU_335","11345 / ORSE-C","Sinalização permanente, vertical,  com placa de aço (50x80cm) com poste de madeira 3,50m fixado com base de concreto 40x40x50","un",583.26,511.51,0.877]
["CPU_336","84665 / SINAPI-C","Pintura acrilica para sinalização horizontal em piso cimentado","m2",23.2,20.34,0.87670000000000003]